{"text_format":"1","workbook":"xlsx","n_sheets":17,"sheets":["реестр ГРО","Калькулятор","Льгота (все 13 ГРО)","Газпром","Челябинскгоргаз","Станкомаш","МПОЭ","Трансэнерго","Теплоэнерго","Озерскгаз","Магнитогорскгазстрой","Златоустгазстрой","Классик","МАГЭнерго","УКВЗ","СтандартЛимит","Лист1"],"not_rendered":{"charts":0,"images":0,"macros":1,"external_links":0,"defined_names":3,"comments":0,"pivot_tables":0},"unopened":[],"bounds":{"document_bytes":16777216,"sheet_cells":100000,"rows_first":2000,"rows_last":500,"rows_between":2000,"halvings":0,"cell_chars":16384,"cell_head_chars":4096},"cells_cut":0,"cells_raw":0,"read":"whole","date_system":"1900"}

{"sheet":"реестр ГРО","index":0,"n_rows":25,"n_cols":2,"rows_kept":25,"cut":false,"hidden":false,"merged":[[0,0,0,1],[18,0,18,1]]}
["Реестр газораспределительных организаций, оказывающих услуги по подключению (технологическому присоединению газоиспользующего оборудования к сетям газораспределения  на территории Челябинской области"]
["№ п/п","Список ГРО"]
[1,"АО \"Газпром газораспределение Челябинск\""]
[2,"АО \"Челябинскгоргаз\""]
[3,"ООО Индустриальный парк «Станкомаш»"]
[4,"МУП «Многоотраслевое производственное объединение энергосетей» г. Трёхгорного"]
[5,"ОАО «Трансэнерго» г. Снежинск                 "]
[6,"МУП «Теплоэнерго»"]
[7,"ООО «Озерскгаз»"]
[8,"ООО «Магнитогорскгазстрой»"]
[9,"ООО «Златоустгазстрой»"]
[10,"ООО «Классик»"]
[11,"ООО «МАГ-Энерго»"]
[12,"УКВЗ имени С.М. Кирова - филиал ФГУП «ГКНПЦ \nимени М.В. Хруничева»\n"]
[13,"ООО «СтандартЛимит»"]
[14]
[]
[]
["Перечень заявителей"]
[1,"Физические лица"]
[2,"Юридические лица/индивидуальные предприниматели"]
[]
[]
["Индекс изменения сметной стоимости (4кв.2017 г.)"]
[5.91]

{"sheet":"Калькулятор","index":1,"n_rows":58,"n_cols":20,"rows_kept":58,"cut":false,"hidden":false,"merged":[[26,2,26,5],[18,3,18,5],[17,2,17,5],[10,2,10,4],[14,4,14,5],[22,2,22,5],[23,2,23,5],[6,3,6,5],[19,4,19,5],[7,2,8,2],[7,3,8,5],[0,2,0,5],[2,3,2,5],[5,3,5,5],[4,3,4,5],[3,3,3,5],[9,4,9,5]]}
[null,null,"Расчет платы за технологическое присоединение к сетям газораспределения"]
[null,null,null,null,null,null,{"$f":"D4","v":0},{"$f":"IF(D10=Газпром!C5,Калькулятор!H3,IF(D10=Газпром!C6,H4,0))","v":0},{"$f":"IF(D10=Газпром!C5,I3,IF(D10=Газпром!C6,I4,0))","v":0},{"$f":"IF(D10=Газпром!C5,J3,IF(D10=Газпром!C6,J4,0))","v":0},{"$f":"IF(D10=Газпром!C5,K3,IF(D10=Газпром!C6,K4,0))","v":0},{"$f":"IF(D10=Газпром!C5,L3,IF(D10=Газпром!C6,L4,0))","v":0},{"$f":"IF(D10=Газпром!C5,M3,IF(D10=Газпром!C6,M4,0))","v":0},{"$f":"IF(D10=Газпром!C5,N3,IF(D10=Газпром!C6,N4,0))","v":0},{"$f":"IF(D10=Газпром!C5,O3,IF(D10=Газпром!C6,O4,0))","v":0},{"$f":"IF(D10=Газпром!C5,P3,IF(D10=Газпром!C6,P4,0))","v":0},{"$f":"IF(D10=Газпром!C5,Q3,IF(D10=Газпром!C6,Q4,0))","v":0},{"$f":"IF(D10=Газпром!C5,R3,IF(D10=Газпром!C6,R4,0))","v":0},{"$f":"IF(D10=Газпром!C5,S3,IF(D10=Газпром!C6,S4,0))","v":0},{"$f":"IF(D10=Газпром!C5,T3,IF(D10=Газпром!C6,T4,0))","v":0}]
[null,null,"Заявитель",null,null,null,null,{"$f":"IF(D4='реестр ГРО'!B3,Газпром!E5,0)","v":0},{"$f":"IF(D4='реестр ГРО'!B4,Челябинскгоргаз!F5,0)","v":0},{"$f":"IF(D4='реестр ГРО'!B5,Станкомаш!E4,0)","v":0},{"$f":"IF(D4='реестр ГРО'!B6,МПОЭ!E5,0)","v":0},{"$f":"IF(D4='реестр ГРО'!B7,Трансэнерго!E5,0)","v":0},{"$f":"IF(D4='реестр ГРО'!B8,Теплоэнерго!D5,0)","v":0},{"$f":"IF(D4='реестр ГРО'!B9,Озерскгаз!E5,0)","v":0},{"$f":"IF(D4='реестр ГРО'!B10,Магнитогорскгазстрой!E5,0)","v":0},{"$f":"IF(D4='реестр ГРО'!B11,Златоустгазстрой!E5,0)","v":0},{"$f":"IF(D4='реестр ГРО'!B12,Классик!E5,0)","v":0},{"$f":"IF(D4='реестр ГРО'!B13,МАГЭнерго!E5,0)","v":0},{"$f":"IF(D4='реестр ГРО'!B14,УКВЗ!E4,0)","v":0},{"$f":"IF(D4='реестр ГРО'!B15,СтандартЛимит!E4,0)","v":0}]
[null,null,"Наименование ГРО",null,null,null,null,{"$f":"IF(D4='реестр ГРО'!B3,Газпром!E6,0)","v":0},{"$f":"IF(D4='реестр ГРО'!B4,Челябинскгоргаз!F6,0)","v":0},{"$f":"IF(D4='реестр ГРО'!B5,Станкомаш!E5,0)","v":0},{"$f":"IF(D4='реестр ГРО'!B6,МПОЭ!E6,0)","v":0},{"$f":"IF(D4='реестр ГРО'!B7,Трансэнерго!E6,0)","v":0},{"$f":"IF(D4='реестр ГРО'!B8,Теплоэнерго!E6,0)","v":0},{"$f":"IF(D4='реестр ГРО'!B9,Озерскгаз!E6,0)","v":0},{"$f":"IF(D4='реестр ГРО'!B10,Магнитогорскгазстрой!E6,0)","v":0},{"$f":"IF(D4='реестр ГРО'!B11,Златоустгазстрой!E6,0)","v":0},{"$f":"IF(D4='реестр ГРО'!B12,Классик!E6,0)","v":0},{"$f":"IF(D4='реестр ГРО'!B13,МАГЭнерго!E6,0)","v":0},{"$f":"IF(D4='реестр ГРО'!B14,УКВЗ!E5,0)","v":0},{"$f":"IF(D4='реестр ГРО'!B15,СтандартЛимит!E4,0)","v":0}]
[null,null,"Протяженность, км                                                                                 ",null,null,null,null,{"$f":"IF(D14=Газпром!C19,Газпром!E19,IF(D14=Газпром!C20,Газпром!E20,IF(D14=Газпром!C21,Газпром!E21,IF(D14=Газпром!C22,Газпром!E22,0))))","v":0},{"$f":"IF(D14=Челябинскгоргаз!D19,Челябинскгоргаз!F19,IF(D14=Челябинскгоргаз!D20,Челябинскгоргаз!F20,IF(D14=Челябинскгоргаз!D21,Челябинскгоргаз!F21,IF(D14=Челябинскгоргаз!D22,Челябинскгоргаз!F22,IF(D14=Челябинскгоргаз!D23,Челябинскгоргаз!F23,0)))))","v":0},{"$f":"IF(D14=Станкомаш!C17,Станкомаш!E17,IF(D14=Станкомаш!C18,Станкомаш!E18,IF(D14=Станкомаш!C19,Станкомаш!E19,IF(D14=Станкомаш!C20,Станкомаш!E20,0))))","v":0},{"$f":"IF(D14=МПОЭ!C18,МПОЭ!E18,IF(D14=МПОЭ!C19,МПОЭ!E19,IF(D14=МПОЭ!C20,МПОЭ!E20,IF(D14=МПОЭ!C21,МПОЭ!E21,0))))","v":0},{"$f":"IF(D14=Теплоэнерго!C18,Теплоэнерго!E18,IF(D14=Теплоэнерго!C19,Теплоэнерго!E19,IF(D14=Теплоэнерго!C20,Теплоэнерго!E20,IF(D14=Теплоэнерго!C21,Теплоэнерго!E21,0))))","v":0},{"$f":"IF(D14=Трансэнерго!C18,Трансэнерго!E18,IF(D14=Трансэнерго!C19,Трансэнерго!E19,IF(D14=Трансэнерго!C20,Трансэнерго!E20,IF(D14=Трансэнерго!C21,Трансэнерго!E21,0))))","v":0},{"$f":"IF(D14=Озерскгаз!C18,Озерскгаз!E18,IF(D14=Озерскгаз!C19,Озерскгаз!E19,IF(D14=Озерскгаз!C20,Озерскгаз!E20,IF(D14=Озерскгаз!C21,Озерскгаз!E21,0))))","v":0},{"$f":"IF(D14=Магнитогорскгазстрой!C18,Магнитогорскгазстрой!E18,IF(D14=Магнитогорскгазстрой!C19,Магнитогорскгазстрой!E19,IF(D14=Магнитогорскгазстрой!C20,Магнитогорскгазстрой!E20,IF(D14=Магнитогорскгазстрой!C21,Магнитогорскгазстрой!E21,0))))","v":0},{"$f":"IF(D14=Златоустгазстрой!C18,Златоустгазстрой!E18,IF(D14=Златоустгазстрой!C19,Златоустгазстрой!E19,IF(D14=Златоустгазстрой!C20,Златоустгазстрой!E20,IF(D14=Златоустгазстрой!C21,Златоустгазстрой!E21,0))))","v":0},{"$f":"IF(D14=Классик!C18,Классик!E18,IF(D14=Классик!C19,Классик!E19,IF(D14=Классик!C20,Классик!E20,IF(D14=Классик!C21,Классик!E21,0))))","v":0},{"$f":"IF(D14=МАГЭнерго!C18,МАГЭнерго!E18,IF(D14=МАГЭнерго!C19,МАГЭнерго!E19,IF(D14=МАГЭнерго!C20,МАГЭнерго!E20,IF(D14=МАГЭнерго!C21,МАГЭнерго!E21,0))))","v":0},{"$f":"IF(D14=УКВЗ!C17,УКВЗ!E17,IF(D14=УКВЗ!C18,УКВЗ!E18,IF(D14=УКВЗ!C19,УКВЗ!E19,IF(D14=УКВЗ!C20,УКВЗ!E20,0))))","v":0},{"$f":"IF(D14=СтандартЛимит!C17,СтандартЛимит!E17,IF(D14=СтандартЛимит!C18,СтандартЛимит!E18,IF(D14=СтандартЛимит!C19,СтандартЛимит!E19,IF(D14=СтандартЛимит!C20,СтандартЛимит!E20,0))))","v":0}]
[null,null,"Максимальный часовой расход газа, куб.метров в час                          "]
[null,null,"Давление, МПа"]
[null,null,"Необходимость строительства ГРП \nда/нет"]
[null,null,null,null,null,null,null,{"$f":"IF(D16=J57,Газпром!E37,0)","v":0},{"$f":"IF(D16=J57,Челябинскгоргаз!F37,0)","v":0},{"$f":"IF(D16=J57,Станкомаш!E35,0)","v":0},{"$f":"IF(D16=J57,МПОЭ!E36,0)","v":0},{"$f":"IF(D16=J57,Теплоэнерго!E36,0)","v":0},{"$f":"IF(D16=J57,Трансэнерго!E36,0)","v":0},{"$f":"IF(D16=J57,Озерскгаз!E36,0)","v":0},{"$f":"IF(D16=J57,Магнитогорскгазстрой!E36,0)","v":0},{"$f":"IF(D16=J57,Златоустгазстрой!E36,0)","v":0},{"$f":"IF(D16=J57,Классик!E36,0)","v":0},{"$f":"IF(D16=J57,МАГЭнерго!E36,0)","v":0},{"$f":"IF(D16=J57,УКВЗ!E35,0)","v":0},{"$f":"IF(D16=J57,СтандартЛимит!E35,0)","v":0}]
[null,null,"Ставка на проектные работы                                                                ","более 150 метров ",{"$f":"IF(D10=Газпром!C5,IF(D4='реестр ГРО'!B3,Газпром!E5,IF(D4='реестр ГРО'!B4,Челябинскгоргаз!F5,IF(D4='реестр ГРО'!B5,Станкомаш!E4,IF(D4='реестр ГРО'!B6,МПОЭ!E5,IF(D4='реестр ГРО'!B7,Трансэнерго!E5,IF(D4='реестр ГРО'!B9,Озерскгаз!E6,IF(D4='реестр ГРО'!B10,Магнитогорскгазстрой!E5,IF(D4='реестр ГРО'!B11,Златоустгазстрой!E5,IF(D4='реестр ГРО'!B12,Классик!E5,IF(D4='реестр ГРО'!B13,МАГЭнерго!E5,IF(D4='реестр ГРО'!B14,УКВЗ!E4,IF(D4='реестр ГРО'!B15,СтандартЛимит!E4,0)))))))))))),IF(D10=Газпром!C6,IF(D4='реестр ГРО'!B3,Газпром!E6,IF(D4='реестр ГРО'!B4,Челябинскгоргаз!F6,IF(D4='реестр ГРО'!B5,Станкомаш!E5,IF(D4='реестр ГРО'!B6,МПОЭ!E6,IF(D4='реестр ГРО'!B7,Трансэнерго!E6,IF(D4='реестр ГРО'!B9,Озерскгаз!E7,IF(D4='реестр ГРО'!B10,Магнитогорскгазстрой!E6,IF(D4='реестр ГРО'!B11,Златоустгазстрой!E6,IF(D4='реестр ГРО'!B12,Классик!E6,IF(D4='реестр ГРО'!B13,МАГЭнерго!E6,IF(D4='реестр ГРО'!B14,УКВЗ!E5,IF(D4='реестр ГРО'!B15,СтандартЛимит!E5,IF(D4='реестр ГРО'!B9,Озерскгаз!E6,IF(D10=Газпром!C5,G10,IF(D10=Газпром!C5,M3,IF(D10=Газпром!C6,IF(D10=Газпром!C5,M3,IF(D10=Газпром!C6,M4,0)),0))))))))))))))))))","v":0},null,null,"газпром","челябинскгоргаз","Санкомаш","МПОЭ","Трансэнерго","Теплооэнерго","Озерскгаз","Магнитогорскгазстрой","Златоустгазстрой","Классик","МАГ-Энерго","УКВЗ","СтандартЛимит"]
[null,null,null,null,null,"Указать протяженность "]
[null,null,"Ставка на строительство стальных газопроводов (наземные) (более 150 метров)      ",null,{"$f":"IF($G$2='реестр ГРО'!$B$3,IF(D12=Газпром!C8,Газпром!E8,IF(D12=Газпром!C9,Газпром!E9,IF(D12=Газпром!C10,Газпром!E10,IF(D12=Газпром!C11,Газпром!E11,IF(D12=Газпром!C12,Газпром!E12,IF(D12=Газпром!C13,Газпром!E13,IF(D12=Газпром!C14,Газпром!E14,IF(D12=Газпром!C15,Газпром!E15,IF(D12=Газпром!C16,Газпром!E16,0))))))))),IF($G$2='реестр ГРО'!$B$4,IF(D12=Челябинскгоргаз!D8,Челябинскгоргаз!F8,IF(D12=Челябинскгоргаз!D9,Челябинскгоргаз!F9,IF(D12=Челябинскгоргаз!D10,Челябинскгоргаз!F10,IF(D12=Челябинскгоргаз!D11,Челябинскгоргаз!F11,IF(D12=Челябинскгоргаз!D12,Челябинскгоргаз!F12,IF(D12=Челябинскгоргаз!D13,Челябинскгоргаз!F13,IF(D12=Челябинскгоргаз!D14,Челябинскгоргаз!F14,IF(D12=Челябинскгоргаз!D15,Челябинскгоргаз!F15,IF(D12=Челябинскгоргаз!D16,Челябинскгоргаз!F16,0))))))))),IF($G$2='реестр ГРО'!$B$6,IF(D12=МПОЭ!C8,МПОЭ!E8,IF(D12=МПОЭ!C9,МПОЭ!E9,IF(D12=МПОЭ!C10,МПОЭ!E10,IF(D12=МПОЭ!C11,МПОЭ!E11,IF(D12=МПОЭ!C12,МПОЭ!E12,IF(D12=МПОЭ!C13,МПОЭ!E13,IF(D12=МПОЭ!C14,МПОЭ!E14,IF(D12=МПОЭ!C15,МПОЭ!E15,IF(D12=МПОЭ!C16,МПОЭ!E16,0))))))))),IF($G$2='реестр ГРО'!$B$5,IF(D12=Станкомаш!C7,Станкомаш!E7,IF(D12=Станкомаш!C8,Станкомаш!E8,IF(D12=Станкомаш!C9,Станкомаш!E9,IF(D12=Станкомаш!C10,Станкомаш!E10,IF(D12=Станкомаш!C11,Станкомаш!E11,IF(D12=Станкомаш!C12,Станкомаш!E12,IF(D12=Станкомаш!C13,Станкомаш!E13,IF(D12=Станкомаш!C14,Станкомаш!E14,IF(D12=Станкомаш!C15,Станкомаш!E15,0))))))))),IF($G$2='реестр ГРО'!$B$7,IF(D12=Трансэнерго!C8,Трансэнерго!E8,IF(D12=Трансэнерго!C9,Трансэнерго!E9,IF(D12=Трансэнерго!C10,Трансэнерго!E10,IF(D12=Трансэнерго!C11,Трансэнерго!E11,IF(D12=Трансэнерго!C12,Трансэнерго!E12,IF(D12=Трансэнерго!C13,Трансэнерго!E13,IF(D12=Трансэнерго!C14,Трансэнерго!E14,IF(D12=Трансэнерго!C15,Трансэнерго!E15,IF(D12=Трансэнерго!C16,Трансэнерго!E16,0))))))))),IF($G$2='реестр ГРО'!$B$8,IF(D12=Теплоэнерго!C8,Теплоэнерго!E8,IF(D12=Теплоэнерго!C9,Теплоэнерго!E9,IF(D12=Теплоэнерго!C10,Теплоэнерго!E10,IF(D12=Теплоэнерго!C11,Теплоэнерго!E11,IF(D12=Теплоэнерго!C12,Теплоэнерго!E12,IF(D12=Теплоэнерго!C13,Теплоэнерго!E13,IF(D12=Теплоэнерго!C14,Теплоэнерго!E14,IF(D12=Теплоэнерго!C15,Теплоэнерго!E15,IF(D12=Теплоэнерго!C16,Теплоэнерго!E16,0))))))))),IF($G$2='реестр ГРО'!$B$9,IF(D12=Озерскгаз!C8,Озерскгаз!E8,IF(D12=Озерскгаз!C9,Озерскгаз!E9,IF(D12=Озерскгаз!C10,Озерскгаз!E10,IF(D12=Озерскгаз!C11,Озерскгаз!E11,IF(D12=Озерскгаз!C12,Озерскгаз!E12,IF(D12=Озерскгаз!C13,Озерскгаз!E13,IF(D12=Озерскгаз!C14,Озерскгаз!E14,IF(D12=Озерскгаз!C15,Озерскгаз!E15,IF(D12=Озерскгаз!C16,Озерскгаз!E16,0))))))))),IF($G$2='реестр ГРО'!$B$10,IF(D12=Магнитогорскгазстрой!C8,Магнитогорскгазстрой!E8,IF(D12=Магнитогорскгазстрой!C9,Магнитогорскгазстрой!E9,IF(D12=Магнитогорскгазстрой!C10,Магнитогорскгазстрой!E10,IF(D12=Магнитогорскгазстрой!C11,Магнитогорскгазстрой!E11,IF(D12=Магнитогорскгазстрой!C12,Магнитогорскгазстрой!E12,IF(D12=Магнитогорскгазстрой!C13,Магнитогорскгазстрой!E13,IF(D12=Магнитогорскгазстрой!C14,Магнитогорскгазстрой!E14,IF(D12=Магнитогорскгазстрой!C15,Магнитогорскгазстрой!E15,IF(D12=Магнитогорскгазстрой!C16,Магнитогорскгазстрой!E16,0))))))))),IF($G$2='реестр ГРО'!$B$11,IF(D12=Златоустгазстрой!C8,Златоустгазстрой!E8,IF(D12=Златоустгазстрой!C9,Златоустгазстрой!E9,IF(D12=Златоустгазстрой!C10,Златоустгазстрой!E10,IF(D12=Златоустгазстрой!C11,Златоустгазстрой!E11,IF(D12=Златоустгазстрой!C12,Златоустгазстрой!E12,IF(D12=Златоустгазстрой!C13,Златоустгазстрой!E13,IF(D12=Златоустгазстрой!C14,Златоустгазстрой!E14,IF(D12=Златоустгазстрой!C15,Златоустгазстрой!E15,IF(D12=Златоустгазстрой!C16,Златоустгазстрой!E16,0))))))))),IF($G$2='реестр ГРО'!$B$12,IF(D12=Классик!C8,Классик!E8,IF(D12=Классик!C9,Классик!E9,IF(D12=Классик!C10,Классик!E10,IF(D12=Классик!C11,Классик!E11,IF(D12=Классик!C12,Классик!E12,IF(D12=Классик!C13,Классик!E13,IF(D12=Классик!C14,Классик!E14,IF(D12=Классик!C15,Классик!E15,IF(D12=Классик!C16,Классик!E16,0))))))))),IF($G$2='реестр ГРО'!$B$13,IF(D12=МАГЭнерго!C8,МАГЭнерго!E8,IF(D12=МАГЭнерго!C9,МАГЭнерго!E9,IF(D12=МАГЭнерго!C10,МАГЭнерго!E10,IF(D12=МАГЭнерго!C11,МАГЭнерго!E11,IF(D12=МАГЭнерго!C12,МАГЭнерго!E12,IF(D12=МАГЭнерго!C13,МАГЭнерго!E13,IF(D12=МАГЭнерго!C14,МАГЭнерго!E14,IF(D12=МАГЭнерго!C15,МАГЭнерго!E15,IF(D12=МАГЭнерго!C16,МАГЭнерго!E16,0))))))))),IF($G$2='реестр ГРО'!$B$14,IF(D12=УКВЗ!C8,УКВЗ!E8,IF(D12=УКВЗ!C9,УКВЗ!E9,IF(D12=УКВЗ!C10,УКВЗ!E10,IF(D12=УКВЗ!C11,УКВЗ!E11,IF(D12=УКВЗ!C12,УКВЗ!E12,IF(D12=УКВЗ!C13,УКВЗ!E13,IF(D12=УКВЗ!C14,УКВЗ!E14,IF(D12=УКВЗ!C15,УКВЗ!E15,IF(D12=УКВЗ!C16,УКВЗ!E16,0))))))))),IF($G$2='реестр ГРО'!$B$15,IF(D12=СтандартЛимит!C7,СтандартЛимит!E8,IF(D12=СтандартЛимит!C8,СтандартЛимит!E8,IF(D12=СтандартЛимит!C9,СтандартЛимит!E9,IF(D12=СтандартЛимит!C10,СтандартЛимит!E10,IF(D12=СтандартЛимит!C11,СтандартЛимит!E11,IF(D12=СтандартЛимит!C12,СтандартЛимит!E12,IF(D12=СтандартЛимит!C13,СтандартЛимит!E13,IF(D12=СтандартЛимит!C14,СтандартЛимит!E14,IF(D12=СтандартЛимит!C15,СтандартЛимит!E15,0))))))))),0)))))))))))))","v":0},null,null,{"$f":"IF(D12=Газпром!C8,Газпром!E8,IF(D12=Газпром!C9,Газпром!E9,IF(D12=Газпром!C10,Газпром!E10,IF(D12=Газпром!C11,Газпром!E11,IF(D12=Газпром!C12,Газпром!E12,IF(D12=Газпром!C13,Газпром!E13,IF(D12=Газпром!C14,Газпром!E14,IF(D12=Газпром!C15,Газпром!E15,IF(D12=Газпром!C16,Газпром!E16,0)))))))))","v":0},{"$f":"IF(D12=Челябинскгоргаз!D8,Челябинскгоргаз!F8,IF(D12=Челябинскгоргаз!D9,Челябинскгоргаз!F9,IF(D12=Челябинскгоргаз!D10,Челябинскгоргаз!F10,IF(D12=Челябинскгоргаз!D11,Челябинскгоргаз!F11,IF(D12=Челябинскгоргаз!D12,Челябинскгоргаз!F12,IF(D12=Челябинскгоргаз!D13,Челябинскгоргаз!F13,IF(D12=Челябинскгоргаз!D14,Челябинскгоргаз!F14,IF(D12=Челябинскгоргаз!D15,Челябинскгоргаз!F15,IF(D12=Челябинскгоргаз!D16,Челябинскгоргаз!F16,0)))))))))","v":0},{"$f":"IF(D12=Станкомаш!C7,Станкомаш!E7,IF(D12=Станкомаш!C8,Станкомаш!E8,IF(D12=Станкомаш!C9,Станкомаш!E9,IF(D12=Станкомаш!C10,Станкомаш!E10,IF(D12=Станкомаш!C11,Станкомаш!E11,IF(D12=Станкомаш!C12,Станкомаш!E12,IF(D12=Станкомаш!C13,Станкомаш!E13,IF(D12=Станкомаш!C14,Станкомаш!E14,IF(D12=Станкомаш!C15,Станкомаш!E15,0)))))))))","v":0},{"$f":"IF(D12=МПОЭ!C8,МПОЭ!E8,IF(D12=МПОЭ!C9,МПОЭ!E9,IF(D12=МПОЭ!C10,МПОЭ!E10,IF(D12=МПОЭ!C11,МПОЭ!E11,IF(D12=МПОЭ!C12,МПОЭ!E12,IF(D12=МПОЭ!C13,МПОЭ!E13,IF(D12=МПОЭ!C14,МПОЭ!E14,IF(D12=МПОЭ!C15,МПОЭ!E15,IF(D12=МПОЭ!C16,МПОЭ!E16,0)))))))))","v":0},null,{"$f":"IF(D12=Теплоэнерго!C8,Теплоэнерго!E8,IF(D12=Теплоэнерго!C9,Теплоэнерго!E9,IF(D12=Теплоэнерго!C10,Теплоэнерго!E10,IF(D12=Теплоэнерго!C11,Теплоэнерго!E11,IF(D12=Теплоэнерго!C12,Теплоэнерго!E12,IF(D12=Теплоэнерго!C13,Теплоэнерго!E13,IF(D12=Теплоэнерго!C14,Теплоэнерго!E14,IF(D12=Теплоэнерго!C15,Теплоэнерго!E15,IF(D12=Теплоэнерго!C16,Теплоэнерго!E16,0)))))))))","v":0},{"$f":"IF(D12=Озерскгаз!C8,Озерскгаз!E8,IF(D12=Озерскгаз!C9,Озерскгаз!E9,IF(D12=Озерскгаз!C10,Озерскгаз!E10,IF(D12=Озерскгаз!C11,Озерскгаз!E11,IF(D12=Озерскгаз!C12,Озерскгаз!E12,IF(D12=Озерскгаз!C13,Озерскгаз!E13,IF(D12=Озерскгаз!C14,Озерскгаз!E14,IF(D12=Озерскгаз!C15,Озерскгаз!E15,IF(D12=Озерскгаз!C16,Озерскгаз!E16,0)))))))))","v":0},{"$f":"IF(D12=Магнитогорскгазстрой!C8,Магнитогорскгазстрой!E8,IF(D12=Магнитогорскгазстрой!C9,Магнитогорскгазстрой!E9,IF(D12=Магнитогорскгазстрой!C10,Магнитогорскгазстрой!E10,IF(D12=Магнитогорскгазстрой!C11,Магнитогорскгазстрой!E11,IF(D12=Магнитогорскгазстрой!C12,Магнитогорскгазстрой!E12,IF(D12=Магнитогорскгазстрой!C13,Магнитогорскгазстрой!E13,IF(D12=Магнитогорскгазстрой!C14,Магнитогорскгазстрой!E14,IF(D12=Магнитогорскгазстрой!C15,Магнитогорскгазстрой!E15,IF(D12=Магнитогорскгазстрой!C16,Магнитогорскгазстрой!E16,0)))))))))","v":0},{"$f":"IF(D12=Златоустгазстрой!C8,Златоустгазстрой!E8,IF(D12=Златоустгазстрой!C9,Златоустгазстрой!E9,IF(D12=Златоустгазстрой!C10,Златоустгазстрой!E10,IF(D12=Златоустгазстрой!C11,Златоустгазстрой!E11,IF(D12=Златоустгазстрой!C12,Златоустгазстрой!E12,IF(D12=Златоустгазстрой!C13,Златоустгазстрой!E13,IF(D12=Златоустгазстрой!C14,Златоустгазстрой!E14,IF(D12=Златоустгазстрой!C15,Златоустгазстрой!E15,IF(D12=Златоустгазстрой!C16,Златоустгазстрой!E16,0)))))))))","v":0},{"$f":"IF(D12=Классик!C8,Классик!E8,IF(D12=Классик!C9,Классик!E9,IF(D12=Классик!C10,Классик!E10,IF(D12=Классик!C11,Классик!E11,IF(D12=Классик!C12,Классик!E12,IF(D12=Классик!C13,Классик!E13,IF(D12=Классик!C14,Классик!E14,IF(D12=Классик!C15,Классик!E15,IF(D12=Классик!C16,Классик!E16,0)))))))))","v":0},{"$f":"IF(D12=МАГЭнерго!C8,МАГЭнерго!E8,IF(D12=МАГЭнерго!C9,МАГЭнерго!E9,IF(D12=МАГЭнерго!C10,МАГЭнерго!E10,IF(D12=МАГЭнерго!C11,МАГЭнерго!E11,IF(D12=МАГЭнерго!C12,МАГЭнерго!E12,IF(D12=МАГЭнерго!C13,МАГЭнерго!E13,IF(D12=МАГЭнерго!C14,МАГЭнерго!E14,IF(D12=МАГЭнерго!C15,МАГЭнерго!E15,IF(D12=МАГЭнерго!C16,МАГЭнерго!E16,0)))))))))","v":0},{"$f":"IF(D12=УКВЗ!C8,УКВЗ!E8,IF(D12=УКВЗ!C9,УКВЗ!E9,IF(D12=УКВЗ!C10,УКВЗ!E10,IF(D12=УКВЗ!C11,УКВЗ!E11,IF(D12=УКВЗ!C12,УКВЗ!E12,IF(D12=УКВЗ!C13,УКВЗ!E13,IF(D12=УКВЗ!C14,УКВЗ!E14,IF(D12=УКВЗ!C15,УКВЗ!E15,IF(D12=УКВЗ!C16,УКВЗ!E16,0)))))))))","v":0},{"$f":"IF(D12=СтандартЛимит!C7,СтандартЛимит!E8,IF(D12=СтандартЛимит!C8,СтандартЛимит!E8,IF(D12=СтандартЛимит!C9,СтандартЛимит!E9,IF(D12=СтандартЛимит!C10,СтандартЛимит!E10,IF(D12=СтандартЛимит!C11,СтандартЛимит!E11,IF(D12=СтандартЛимит!C12,СтандартЛимит!E12,IF(D12=СтандартЛимит!C13,СтандартЛимит!E13,IF(D12=СтандартЛимит!C14,СтандартЛимит!E14,IF(D12=СтандартЛимит!C15,СтандартЛимит!E15,0)))))))))","v":142363.93}]
[null,null,"Ставка на строительство стальных газопроводов (подземные) (более 150 метров)        ",null,{"$f":"IF($G$2='реестр ГРО'!$B$3,IF(D13=Газпром!C8,Газпром!E8,IF(D13=Газпром!C9,Газпром!E9,IF(D13=Газпром!C10,Газпром!E10,IF(D13=Газпром!C11,Газпром!E11,IF(D13=Газпром!C12,Газпром!E12,IF(D13=Газпром!C13,Газпром!E13,IF(D13=Газпром!C14,Газпром!E14,IF(D13=Газпром!C15,Газпром!E15,IF(D13=Газпром!C16,Газпром!E16,0))))))))),IF($G$2='реестр ГРО'!$B$4,IF(D13=Челябинскгоргаз!D8,Челябинскгоргаз!F8,IF(D13=Челябинскгоргаз!D9,Челябинскгоргаз!F9,IF(D13=Челябинскгоргаз!D10,Челябинскгоргаз!F10,IF(D13=Челябинскгоргаз!D11,Челябинскгоргаз!F11,IF(D13=Челябинскгоргаз!D12,Челябинскгоргаз!F12,IF(D13=Челябинскгоргаз!D13,Челябинскгоргаз!F13,IF(D13=Челябинскгоргаз!D14,Челябинскгоргаз!F14,IF(D13=Челябинскгоргаз!D15,Челябинскгоргаз!F15,IF(D13=Челябинскгоргаз!D16,Челябинскгоргаз!F16,0))))))))),IF($G$2='реестр ГРО'!$B$6,IF(D13=МПОЭ!C8,МПОЭ!E8,IF(D13=МПОЭ!C9,МПОЭ!E9,IF(D13=МПОЭ!C10,МПОЭ!E10,IF(D13=МПОЭ!C11,МПОЭ!E11,IF(D13=МПОЭ!C12,МПОЭ!E12,IF(D13=МПОЭ!C13,МПОЭ!E13,IF(D13=МПОЭ!C14,МПОЭ!E14,IF(D13=МПОЭ!C15,МПОЭ!E15,IF(D13=МПОЭ!C16,МПОЭ!E16,0))))))))),IF($G$2='реестр ГРО'!$B$5,IF(D13=Станкомаш!C7,Станкомаш!E7,IF(D13=Станкомаш!C8,Станкомаш!E8,IF(D13=Станкомаш!C9,Станкомаш!E9,IF(D13=Станкомаш!C10,Станкомаш!E10,IF(D13=Станкомаш!C11,Станкомаш!E11,IF(D13=Станкомаш!C12,Станкомаш!E12,IF(D13=Станкомаш!C13,Станкомаш!E13,IF(D13=Станкомаш!C14,Станкомаш!E14,IF(D13=Станкомаш!C15,Станкомаш!E15,0))))))))),IF($G$2='реестр ГРО'!$B$7,IF(D13=Трансэнерго!C8,Трансэнерго!E8,IF(D13=Трансэнерго!C9,Трансэнерго!E9,IF(D13=Трансэнерго!C10,Трансэнерго!E10,IF(D13=Трансэнерго!C11,Трансэнерго!E11,IF(D13=Трансэнерго!C12,Трансэнерго!E12,IF(D13=Трансэнерго!C13,Трансэнерго!E13,IF(D13=Трансэнерго!C14,Трансэнерго!E14,IF(D13=Трансэнерго!C15,Трансэнерго!E15,IF(D13=Трансэнерго!C16,Трансэнерго!E16,0))))))))),IF($G$2='реестр ГРО'!$B$8,IF(D13=Теплоэнерго!C8,Теплоэнерго!E8,IF(D13=Теплоэнерго!C9,Теплоэнерго!E9,IF(D13=Теплоэнерго!C10,Теплоэнерго!E10,IF(D13=Теплоэнерго!C11,Теплоэнерго!E11,IF(D13=Теплоэнерго!C12,Теплоэнерго!E12,IF(D13=Теплоэнерго!C13,Теплоэнерго!E13,IF(D13=Теплоэнерго!C14,Теплоэнерго!E14,IF(D13=Теплоэнерго!C15,Теплоэнерго!E15,IF(D13=Теплоэнерго!C16,Теплоэнерго!E16,0))))))))),IF($G$2='реестр ГРО'!$B$9,IF(D13=Озерскгаз!C8,Озерскгаз!E8,IF(D13=Озерскгаз!C9,Озерскгаз!E9,IF(D13=Озерскгаз!C10,Озерскгаз!E10,IF(D13=Озерскгаз!C11,Озерскгаз!E11,IF(D13=Озерскгаз!C12,Озерскгаз!E12,IF(D13=Озерскгаз!C13,Озерскгаз!E13,IF(D13=Озерскгаз!C14,Озерскгаз!E14,IF(D13=Озерскгаз!C15,Озерскгаз!E15,IF(D12=Озерскгаз!C16,Озерскгаз!E16,0))))))))),IF($G$2='реестр ГРО'!$B$10,IF(D12=Магнитогорскгазстрой!C8,Магнитогорскгазстрой!E8,IF(D13=Магнитогорскгазстрой!C9,Магнитогорскгазстрой!E9,IF(D13=Магнитогорскгазстрой!C10,Магнитогорскгазстрой!E10,IF(D13=Магнитогорскгазстрой!C11,Магнитогорскгазстрой!E11,IF(D12=Магнитогорскгазстрой!C12,Магнитогорскгазстрой!E12,IF(D13=Магнитогорскгазстрой!C13,Магнитогорскгазстрой!E13,IF(D13=Магнитогорскгазстрой!C14,Магнитогорскгазстрой!E14,IF(D13=Магнитогорскгазстрой!C15,Магнитогорскгазстрой!E15,IF(D12=Магнитогорскгазстрой!C16,Магнитогорскгазстрой!E16,0))))))))),IF($G$2='реестр ГРО'!$B$11,IF(D13=Златоустгазстрой!C8,Златоустгазстрой!E8,IF(D13=Златоустгазстрой!C9,Златоустгазстрой!E9,IF(D13=Златоустгазстрой!C10,Златоустгазстрой!E10,IF(D13=Златоустгазстрой!C11,Златоустгазстрой!E11,IF(D13=Златоустгазстрой!C12,Златоустгазстрой!E12,IF(D13=Златоустгазстрой!C13,Златоустгазстрой!E13,IF(D13=Златоустгазстрой!C14,Златоустгазстрой!E14,IF(D13=Златоустгазстрой!C15,Златоустгазстрой!E15,IF(D13=Златоустгазстрой!C16,Златоустгазстрой!E16,0))))))))),IF($G$2='реестр ГРО'!$B$12,IF(D13=Классик!C8,Классик!E8,IF(D13=Классик!C9,Классик!E9,IF(D13=Классик!C10,Классик!E10,IF(D13=Классик!C11,Классик!E11,IF(D13=Классик!C12,Классик!E12,IF(D13=Классик!C13,Классик!E13,IF(D13=Классик!C14,Классик!E14,IF(D13=Классик!C15,Классик!E15,IF(D13=Классик!C16,Классик!E16,0))))))))),IF($G$2='реестр ГРО'!$B$13,IF(D13=МАГЭнерго!C8,МАГЭнерго!E8,IF(D13=МАГЭнерго!C9,МАГЭнерго!E9,IF(D13=МАГЭнерго!C10,МАГЭнерго!E10,IF(D13=МАГЭнерго!C11,МАГЭнерго!E11,IF(D13=МАГЭнерго!C12,МАГЭнерго!E12,IF(D13=МАГЭнерго!C13,МАГЭнерго!E13,IF(D13=МАГЭнерго!C14,МАГЭнерго!E14,IF(D13=МАГЭнерго!C15,МАГЭнерго!E15,IF(D13=МАГЭнерго!C16,МАГЭнерго!E16,0))))))))),IF($G$2='реестр ГРО'!$B$14,IF(D13=УКВЗ!C8,УКВЗ!E8,IF(D13=УКВЗ!C9,УКВЗ!E9,IF(D13=УКВЗ!C10,УКВЗ!E10,IF(D13=УКВЗ!C11,УКВЗ!E11,IF(D13=УКВЗ!C12,УКВЗ!E12,IF(D13=УКВЗ!C13,УКВЗ!E13,IF(D13=УКВЗ!C14,УКВЗ!E14,IF(D13=УКВЗ!C15,УКВЗ!E15,IF(D13=УКВЗ!C16,УКВЗ!E16,0))))))))),IF($G$2='реестр ГРО'!$B$15,IF(D13=СтандартЛимит!C7,СтандартЛимит!E8,IF(D13=СтандартЛимит!C8,СтандартЛимит!E8,IF(D13=СтандартЛимит!C9,СтандартЛимит!E9,IF(D12=СтандартЛимит!C10,СтандартЛимит!E10,IF(D13=СтандартЛимит!C11,СтандартЛимит!E11,IF(D13=СтандартЛимит!C12,СтандартЛимит!E12,IF(D13=СтандартЛимит!C13,СтандартЛимит!E13,IF(D13=СтандартЛимит!C14,СтандартЛимит!E14,IF(D13=СтандартЛимит!C15,СтандартЛимит!E15,0))))))))),0)))))))))))))","v":0}]
[null,null,"Ставка на строительство полиэтиленовых газопроводов  (более 150 метров)    ",null,{"$f":"IF($G$2='реестр ГРО'!$B$3,IF(D14=Газпром!C19,Газпром!E19,IF(D14=Газпром!C20,Газпром!E20,IF(D14=Газпром!C21,Газпром!E21,IF(D14=Газпром!C22,Газпром!E22,0)))),IF($G$2='реестр ГРО'!$B$4,IF(D14=Челябинскгоргаз!D19,Челябинскгоргаз!F19,IF(D14=Челябинскгоргаз!D20,Челябинскгоргаз!F20,IF(D14=Челябинскгоргаз!D21,Челябинскгоргаз!F21,IF(D14=Челябинскгоргаз!D22,Челябинскгоргаз!F22,IF(D14=Челябинскгоргаз!D23,Челябинскгоргаз!F23,0))))),IF($G$2='реестр ГРО'!$B$6,IF(D14=МПОЭ!C18,МПОЭ!E18,IF(D14=МПОЭ!C19,МПОЭ!E19,IF(D14=МПОЭ!C20,МПОЭ!E20,IF(D14=МПОЭ!C21,МПОЭ!E21,0)))),IF($G$2='реестр ГРО'!$B$8,IF(D14=Теплоэнерго!C18,Теплоэнерго!E18,IF(D14=Теплоэнерго!C19,Теплоэнерго!E19,IF(D14=Теплоэнерго!C20,Теплоэнерго!E20,IF(D14=Теплоэнерго!C21,Теплоэнерго!E21,0)))),IF($G$2='реестр ГРО'!$B$7,IF(D14=Трансэнерго!C18,Трансэнерго!E18,IF(D14=Трансэнерго!C19,Трансэнерго!E19,IF(D14=Трансэнерго!C20,Трансэнерго!E20,IF(D14=Трансэнерго!C21,Трансэнерго!E21,0)))),IF($G$2='реестр ГРО'!$B$9,IF(D14=Озерскгаз!C18,Озерскгаз!E18,IF(D14=Озерскгаз!C19,Озерскгаз!E19,IF(D14=Озерскгаз!C20,Озерскгаз!E20,IF(D14=Озерскгаз!C21,Озерскгаз!E21,0)))),IF($G$2='реестр ГРО'!$B$10,IF(D14=Магнитогорскгазстрой!C18,Магнитогорскгазстрой!E18,IF(D14=Магнитогорскгазстрой!C19,Магнитогорскгазстрой!E19,IF(D14=Магнитогорскгазстрой!C20,Магнитогорскгазстрой!E20,IF(D14=Магнитогорскгазстрой!C21,Магнитогорскгазстрой!E21,0)))),IF($G$2='реестр ГРО'!$B$3,H5,IF($G$2='реестр ГРО'!B11,IF(D14=Златоустгазстрой!C18,Златоустгазстрой!E18,IF(D14=Златоустгазстрой!C19,Златоустгазстрой!E19,IF(D14=Златоустгазстрой!C20,Златоустгазстрой!E20,IF(D14=Златоустгазстрой!C21,Златоустгазстрой!E21,0)))),IF($G$2='реестр ГРО'!$B$12,IF(D14=Классик!C18,Классик!E18,IF(D14=Классик!C19,Классик!E19,IF(D14=Классик!C20,Классик!E20,IF(D14=Классик!C21,Классик!E21,0)))),IF($G$2='реестр ГРО'!$B$13,IF(D14=МАГЭнерго!C18,МАГЭнерго!E18,IF(D14=МАГЭнерго!C19,МАГЭнерго!E19,IF(D14=МАГЭнерго!C20,МАГЭнерго!E20,IF(D14=МАГЭнерго!C21,МАГЭнерго!E21,0)))),IF($G$2='реестр ГРО'!$B$14,IF(D14=УКВЗ!C17,УКВЗ!E17,IF(D14=УКВЗ!C18,УКВЗ!E18,IF(D14=УКВЗ!C19,УКВЗ!E19,IF(D14=УКВЗ!C20,УКВЗ!E20,0)))),IF($G$2='реестр ГРО'!$B$15,IF(D14=СтандартЛимит!C17,СтандартЛимит!E17,IF(D14=СтандартЛимит!C18,СтандартЛимит!E18,IF(D14=СтандартЛимит!C19,СтандартЛимит!E19,IF(D14=СтандартЛимит!C20,СтандартЛимит!E20,0)))),IF(D4='реестр ГРО'!B5,IF(D14=Станкомаш!C17,Станкомаш!E17,IF(D14=Станкомаш!C18,Станкомаш!E18,IF(D14=Станкомаш!C19,Станкомаш!E19,IF(D14=Станкомаш!C20,Станкомаш!E20,0)))),0))))))))))))))","v":0},null,{"$f":"OR(G15,G16)","v":false}]
[null,null,"Ставка на строительство газорегуляторных пунктов                                         ",null,{"$f":"IF($D$4='реестр ГРО'!$B$3,H15,IF(D4='реестр ГРО'!B4,I15,IF(D4='реестр ГРО'!B5,J15,IF(D4='реестр ГРО'!B6,K15,IF(D4='реестр ГРО'!B7,L15,IF(D4='реестр ГРО'!B8,M15,IF(D4='реестр ГРО'!B9,N15,IF(D4='реестр ГРО'!B10,O15,IF(D4='реестр ГРО'!B11,P15,IF(D4='реестр ГРО'!B12,Q15,IF(D4='реестр ГРО'!B13,R15,IF(D4='реестр ГРО'!B14,S15,IF(D4='реестр ГРО'!B15,T15,0)))))))))))))","v":0},null,{"$f":"IF(D25=24884.23,0)","v":0},{"$f":"IF(D15=Газпром!C26,Газпром!E26,IF(D15=Газпром!C27,Газпром!E27,IF(D15=Газпром!C28,Газпром!E28,IF(D15=Газпром!C29,Газпром!E29,IF(D15=Газпром!C30,Газпром!E30,IF(D15=Газпром!C31,Газпром!E31,IF(D15=Газпром!C32,Газпром!E32,IF(D15=Газпром!C33,Газпром!E33,IF(D15=Газпром!C34,Газпром!E34,IF(D15=Газпром!C35,Газпром!E35,IF(D15=Газпром!C36,Газпром!E36,0)))))))))))","v":0},{"$f":"IF(D15=Челябинскгоргаз!D25,Челябинскгоргаз!F25,IF(D15=Челябинскгоргаз!D26,Челябинскгоргаз!F26,IF(D15=Челябинскгоргаз!D27,Челябинскгоргаз!F27,IF(D15=Челябинскгоргаз!D28,Челябинскгоргаз!F28,IF(D15=Челябинскгоргаз!D29,Челябинскгоргаз!F29,IF(D15=Челябинскгоргаз!D30,Челябинскгоргаз!F30,IF(D15=Челябинскгоргаз!D31,Челябинскгоргаз!F31,IF(D15=Челябинскгоргаз!D32,Челябинскгоргаз!F32,IF(D15=Челябинскгоргаз!D33,Челябинскгоргаз!F33,IF(D15=Челябинскгоргаз!D34,Челябинскгоргаз!F34,IF(D15=Челябинскгоргаз!D35,Челябинскгоргаз!F35,IF(D15=Челябинскгоргаз!D36,Челябинскгоргаз!F36,0))))))))))))","v":0},{"$f":"IF(D15=Станкомаш!C23,Станкомаш!E23,IF(D15=Станкомаш!C24,Станкомаш!E24,IF(D15=Станкомаш!C25,Станкомаш!E25,IF(D15=Станкомаш!C26,Станкомаш!E26,IF(D15=Станкомаш!C27,Станкомаш!E27,IF(D15=Станкомаш!C28,Станкомаш!E28,IF(D15=Станкомаш!C29,Станкомаш!E29,IF(D15=Станкомаш!C30,Станкомаш!E30,IF(D15=Станкомаш!C31,Станкомаш!E31,IF(D15=Станкомаш!C32,Станкомаш!E32,IF(D15=Станкомаш!C33,Станкомаш!E33,IF(D15=Станкомаш!C34,Станкомаш!E34,0))))))))))))","v":0},{"$f":"IF(D15=МПОЭ!E24,МПОЭ!E24,IF(D15=МПОЭ!C25,МПОЭ!E25,IF(D15=МПОЭ!C26,МПОЭ!E26,IF(D15=МПОЭ!C27,МПОЭ!E27,IF(D15=МПОЭ!C28,МПОЭ!E28,IF(D15=МПОЭ!C29,МПОЭ!E29,IF(D15=МПОЭ!C30,МПОЭ!E30,IF(D15=МПОЭ!C31,МПОЭ!E31,IF(D15=МПОЭ!C32,МПОЭ!E32,IF(D15=МПОЭ!C33,МПОЭ!E33,IF(D15=МПОЭ!C34,МПОЭ!E34,IF(D15=МПОЭ!C35,МПОЭ!E35,0))))))))))))","v":0},{"$f":"IF(D15=Теплоэнерго!C24,Теплоэнерго!E24,IF(D15=Теплоэнерго!C25,Теплоэнерго!E25,IF(D15=Теплоэнерго!C26,Теплоэнерго!E26,IF(D15=Теплоэнерго!C27,Теплоэнерго!E27,IF(D15=Теплоэнерго!C28,Теплоэнерго!E28,IF(D15=Теплоэнерго!C29,Теплоэнерго!E29,IF(D15=Теплоэнерго!C30,Теплоэнерго!E30,IF(D15=Теплоэнерго!C31,Теплоэнерго!E31,IF(D15=Теплоэнерго!C32,Теплоэнерго!E32,IF(D15=Теплоэнерго!C33,Теплоэнерго!E33,IF(D15=Теплоэнерго!C34,Теплоэнерго!E34,IF(D15=Теплоэнерго!C35,Теплоэнерго!E35,0))))))))))))","v":0},{"$f":"IF(D15=Трансэнерго!C24,Трансэнерго!E24,IF(D15=Трансэнерго!C25,Трансэнерго!E25,IF(D15=Трансэнерго!C26,Трансэнерго!E26,IF(D15=Трансэнерго!C27,Трансэнерго!E27,IF(D15=Трансэнерго!C28,Трансэнерго!E28,IF(D15=Трансэнерго!C29,Трансэнерго!E29,IF(D15=Трансэнерго!C30,Трансэнерго!E30,IF(D15=Трансэнерго!C31,Трансэнерго!E31,IF(D15=Трансэнерго!C32,Трансэнерго!E32,IF(D15=Трансэнерго!C33,Трансэнерго!E33,IF(D15=Трансэнерго!C34,Трансэнерго!E34,IF(D15=Трансэнерго!C35,Трансэнерго!E35,0))))))))))))","v":0},{"$f":"IF(D15=Озерскгаз!C24,Озерскгаз!E24,IF(D15=Озерскгаз!C25,Озерскгаз!E25,IF(D15=Озерскгаз!C26,Озерскгаз!E26,IF(D15=Озерскгаз!C27,Озерскгаз!E27,IF(D15=Озерскгаз!C28,Озерскгаз!E28,IF(D15=Озерскгаз!C29,Озерскгаз!E29,IF(D15=Озерскгаз!C30,Озерскгаз!E30,IF(D15=Озерскгаз!C31,Озерскгаз!E31,IF(D15=Озерскгаз!C32,Озерскгаз!E32,IF(D15=Озерскгаз!C33,Озерскгаз!E33,IF(D15=Озерскгаз!C34,Озерскгаз!E34,IF(D15=Озерскгаз!C35,Озерскгаз!E35,0))))))))))))","v":0},{"$f":"IF(D15=Магнитогорскгазстрой!C24,Магнитогорскгазстрой!E24,IF(D15=Магнитогорскгазстрой!C25,Магнитогорскгазстрой!E25,IF(D15=Магнитогорскгазстрой!C26,Магнитогорскгазстрой!E26,IF(D15=Магнитогорскгазстрой!C27,Магнитогорскгазстрой!E27,IF(D15=Магнитогорскгазстрой!C28,Магнитогорскгазстрой!E28,IF(D15=Магнитогорскгазстрой!C29,Магнитогорскгазстрой!E29,IF(D15=Магнитогорскгазстрой!C30,Магнитогорскгазстрой!E30,IF(D15=Магнитогорскгазстрой!C31,Магнитогорскгазстрой!E31,IF(D15=Магнитогорскгазстрой!C32,Магнитогорскгазстрой!E32,IF(D15=Магнитогорскгазстрой!C33,Магнитогорскгазстрой!E33,IF(D15=Магнитогорскгазстрой!C34,Магнитогорскгазстрой!E34,IF(D15=Магнитогорскгазстрой!C35,Магнитогорскгазстрой!E35,0))))))))))))","v":0},{"$f":"IF(D15=Златоустгазстрой!C24,Златоустгазстрой!E24,IF(D15=Златоустгазстрой!C25,Златоустгазстрой!E25,IF(D15=Златоустгазстрой!C26,Златоустгазстрой!E26,IF(D15=Златоустгазстрой!C27,Златоустгазстрой!E27,IF(D15=Златоустгазстрой!C28,Златоустгазстрой!E28,IF(D15=Златоустгазстрой!C29,Златоустгазстрой!E29,IF(D15=Златоустгазстрой!C30,Златоустгазстрой!E30,IF(D15=Златоустгазстрой!C31,Златоустгазстрой!E31,IF(D15=Златоустгазстрой!C32,Златоустгазстрой!E32,IF(D15=Златоустгазстрой!C33,Златоустгазстрой!E33,IF(D15=Златоустгазстрой!C34,Златоустгазстрой!E34,IF(D15=Златоустгазстрой!C35,Златоустгазстрой!E35,0))))))))))))","v":0},{"$f":"IF(D15=Классик!C24,Классик!E24,IF(D15=Классик!C25,Классик!E25,IF(D15=Классик!C26,Классик!E26,IF(D15=Классик!C27,Классик!E27,IF(D15=Классик!C28,Классик!E28,IF(D15=Классик!C29,Классик!E29,IF(D15=Классик!C30,Классик!E30,IF(D15=Классик!C31,Классик!E31,IF(D15=Классик!C32,Классик!E32,IF(D15=Классик!C33,Классик!E33,IF(D15=Классик!C34,Классик!E34,IF(D15=Классик!C35,Классик!E35,0))))))))))))","v":0},{"$f":"IF(D15=МАГЭнерго!C24,МАГЭнерго!E24,IF(D15=МАГЭнерго!C25,МАГЭнерго!E25,IF(D15=МАГЭнерго!C26,МАГЭнерго!E26,IF(D15=МАГЭнерго!C27,МАГЭнерго!E27,IF(D15=МАГЭнерго!C28,МАГЭнерго!E28,IF(D15=МАГЭнерго!C29,МАГЭнерго!E29,IF(D15=МАГЭнерго!C30,МАГЭнерго!E30,IF(D15=МАГЭнерго!C31,МАГЭнерго!E31,IF(D15=МАГЭнерго!C32,МАГЭнерго!E32,IF(D15=МАГЭнерго!C33,МАГЭнерго!E33,IF(D15=МАГЭнерго!C34,МАГЭнерго!E34,IF(D15=МАГЭнерго!C35,МАГЭнерго!E35,0))))))))))))","v":0},{"$f":"IF(D15=УКВЗ!C23,УКВЗ!E23,IF(D15=УКВЗ!C24,УКВЗ!E24,IF(D15=УКВЗ!C25,УКВЗ!E25,IF(D15=УКВЗ!C26,УКВЗ!E26,IF(D15=УКВЗ!C27,УКВЗ!E27,IF(D15=УКВЗ!C28,УКВЗ!E28,IF(D15=УКВЗ!C29,УКВЗ!E29,IF(D15=УКВЗ!C30,УКВЗ!E30,IF(D15=УКВЗ!C31,УКВЗ!E31,IF(D15=УКВЗ!C32,УКВЗ!E32,IF(D15=УКВЗ!C33,УКВЗ!E33,IF(D15=УКВЗ!C34,УКВЗ!E34,0))))))))))))","v":0},{"$f":"IF(D15=СтандартЛимит!C23,СтандартЛимит!E23,IF(D15=СтандартЛимит!C24,СтандартЛимит!E24,IF(D15=СтандартЛимит!C25,СтандартЛимит!E25,IF(D15=СтандартЛимит!C26,СтандартЛимит!E26,IF(D15=СтандартЛимит!C27,СтандартЛимит!E27,IF(D15=СтандартЛимит!C28,СтандартЛимит!E28,IF(D15=СтандартЛимит!C29,СтандартЛимит!E29,IF(D15=СтандартЛимит!C30,СтандартЛимит!E30,IF(D15=СтандартЛимит!C31,СтандартЛимит!E31,IF(D15=СтандартЛимит!C32,СтандартЛимит!E32,IF(D15=СтандартЛимит!C33,СтандартЛимит!E33,IF(D15=СтандартЛимит!C34,СтандартЛимит!E34,0))))))))))))","v":0}]
[null,null,"Ставка на строительство станций катодной защиты                             ",null,{"$f":"IF(D4='реестр ГРО'!B3,H9,IF(D4='реестр ГРО'!B4,I9,IF(D4='реестр ГРО'!B5,J9,IF(D4='реестр ГРО'!B6,K9,IF(D4='реестр ГРО'!B7,L9,IF(D4='реестр ГРО'!B8,M9,IF(D4='реестр ГРО'!B9,N9,IF(D4='реестр ГРО'!B10,O9,IF(D4='реестр ГРО'!B11,P9,IF(D4='реестр ГРО'!B12,Q9,IF(D4='реестр ГРО'!B13,R9,IF(D4='реестр ГРО'!B14,S9,IF(D4='реестр ГРО'!B15,T9,0)))))))))))))","v":0},"Указать количество врезок ",{"$f":"IF(D25=52720.81,0)","v":false}]
[null,null,"Ставка на проверку ГРО выполнения заявителем технических условий, фактическое присоединение и пуск газа                                                                                   ",null,{"$f":"IF($G$2='реестр ГРО'!$B$3,IF(Калькулятор!D17=Газпром!C43,Газпром!E43,IF(Калькулятор!D17=Газпром!C44,Газпром!E44,IF(Калькулятор!D17=Газпром!C45,Газпром!E45,IF(Калькулятор!D17=Газпром!C46,Газпром!E46,IF(Калькулятор!D17=Газпром!C47,Газпром!E47,IF(Калькулятор!D17=Газпром!C48,Газпром!E48,IF(Калькулятор!D17=Газпром!C49,Газпром!E49,IF(Калькулятор!D17=Газпром!C50,Газпром!E50,IF(D15=Газпром!C31,Газпром!E31,0))))))))),IF($G$2='реестр ГРО'!$B$4,IF(Калькулятор!D17=Челябинскгоргаз!D40,Челябинскгоргаз!F40,IF(Калькулятор!D17=Челябинскгоргаз!D41,Челябинскгоргаз!F41,IF(Калькулятор!D17=Челябинскгоргаз!D42,Челябинскгоргаз!F42,IF(Калькулятор!D17=Челябинскгоргаз!D43,Челябинскгоргаз!F43,IF(Калькулятор!D17=Челябинскгоргаз!D44,Челябинскгоргаз!F44,IF(Калькулятор!D17=Челябинскгоргаз!D45,Челябинскгоргаз!F45,IF(Калькулятор!D17=Челябинскгоргаз!D46,Челябинскгоргаз!F46,IF(Калькулятор!D17=Челябинскгоргаз!D47,Челябинскгоргаз!F47,IF(D15=Челябинскгоргаз!D28,Челябинскгоргаз!F28,0))))))))),IF($G$2='реестр ГРО'!$B$5,IF(Калькулятор!D17=Станкомаш!C38,Станкомаш!E38,IF(Калькулятор!D17=Станкомаш!C39,Станкомаш!E39,IF(Калькулятор!D17=Станкомаш!C40,Станкомаш!E40,IF(Калькулятор!D17=Станкомаш!C41,Станкомаш!E41,IF(Калькулятор!D17=Станкомаш!C42,Станкомаш!E42,IF(Калькулятор!D17=Станкомаш!C43,Станкомаш!E43,IF(Калькулятор!D17=Станкомаш!C44,Станкомаш!E44,IF(Калькулятор!D17=Станкомаш!C45,Станкомаш!E45,IF(D15=Станкомаш!C37,Станкомаш!E37,0))))))))),IF($G$2='реестр ГРО'!$B$6,IF(Калькулятор!D17=МПОЭ!C39,МПОЭ!E39,IF(Калькулятор!D17=МПОЭ!C40,МПОЭ!E40,IF(Калькулятор!D17=МПОЭ!C41,МПОЭ!E41,IF(Калькулятор!D17=МПОЭ!C42,МПОЭ!E42,IF(Калькулятор!D17=МПОЭ!C43,МПОЭ!E43,IF(Калькулятор!D17=МПОЭ!C44,МПОЭ!E44,IF(Калькулятор!D17=МПОЭ!C45,МПОЭ!E45,IF(Калькулятор!D17=МПОЭ!C46,МПОЭ!E46,IF(D15=МПОЭ!C27,МПОЭ!E27,0))))))))),IF($G$2='реестр ГРО'!$B$7,IF(Калькулятор!D17=Теплоэнерго!C39,Теплоэнерго!E39,IF(Калькулятор!D17=Теплоэнерго!C40,Теплоэнерго!E40,IF(Калькулятор!D17=Теплоэнерго!C41,Теплоэнерго!E41,IF(Калькулятор!D17=Теплоэнерго!C42,Теплоэнерго!E42,IF(Калькулятор!D17=Теплоэнерго!C43,Теплоэнерго!E43,IF(Калькулятор!D17=Теплоэнерго!C44,Теплоэнерго!E45,IF(Калькулятор!D17=Теплоэнерго!C45,IF(Калькулятор!D17=Теплоэнерго!C46,Теплоэнерго!E46,IF(D15=Теплоэнерго!C27,Теплоэнерго!E27,0))))))))),IF($G$2='реестр ГРО'!$B$8,IF(Калькулятор!D17=Трансэнерго!C39,Трансэнерго!E39,IF(Калькулятор!D17=Трансэнерго!C40,Трансэнерго!E40,IF(Калькулятор!D17=Трансэнерго!C41,Трансэнерго!E41,IF(Калькулятор!D17=Трансэнерго!C42,Трансэнерго!E42,IF(Калькулятор!D17=Трансэнерго!C43,Трансэнерго!E43,IF(Калькулятор!D17=Трансэнерго!C44,Трансэнерго!E44,IF(Калькулятор!D17=Трансэнерго!C45,Трансэнерго!E45,IF(Калькулятор!D17=Трансэнерго!C46,Трансэнерго!E46,IF(D15=Трансэнерго!C27,Трансэнерго!E27,0))))))))),IF($G$2='реестр ГРО'!$B$9,IF(Калькулятор!D17=Озерскгаз!C39,Озерскгаз!E39,IF(Калькулятор!D17=Озерскгаз!C40,Озерскгаз!E40,IF(Калькулятор!D17=Озерскгаз!C41,Озерскгаз!E41,IF(Калькулятор!D17=Озерскгаз!C42,Озерскгаз!E42,IF(Калькулятор!D17=Озерскгаз!C43,Озерскгаз!E43,IF(Калькулятор!D17=Озерскгаз!C44,Озерскгаз!E44,IF(Калькулятор!D17=Озерскгаз!C45,Озерскгаз!E45,IF(Калькулятор!D17=Озерскгаз!C46,Озерскгаз!E46,IF(D15=Озерскгаз!C27,Озерскгаз!E27,0))))))))),IF($G$2='реестр ГРО'!$B$10,IF(Калькулятор!D17=Магнитогорскгазстрой!C39,Магнитогорскгазстрой!E39,IF(Калькулятор!D17=Магнитогорскгазстрой!C40,Магнитогорскгазстрой!E40,IF(Калькулятор!D17=Магнитогорскгазстрой!C41,Магнитогорскгазстрой!E41,IF(Калькулятор!D17=Магнитогорскгазстрой!C42,Магнитогорскгазстрой!E42,IF(Калькулятор!D17=Магнитогорскгазстрой!C43,Магнитогорскгазстрой!E43,IF(Калькулятор!D17=Магнитогорскгазстрой!C44,Магнитогорскгазстрой!E44,IF(Калькулятор!D17=Магнитогорскгазстрой!C45,Магнитогорскгазстрой!E45,IF(Калькулятор!D17=Магнитогорскгазстрой!C46,Магнитогорскгазстрой!E46,IF(D15=Магнитогорскгазстрой!C27,Магнитогорскгазстрой!E27,0))))))))),IF($G$2='реестр ГРО'!$B$11,IF(Калькулятор!D17=Златоустгазстрой!C39,Златоустгазстрой!E39,IF(Калькулятор!D17=Златоустгазстрой!C40,Златоустгазстрой!E40,IF(Калькулятор!D17=Златоустгазстрой!C41,Златоустгазстрой!E41,IF(Калькулятор!D17=Златоустгазстрой!C42,Златоустгазстрой!E42,IF(Калькулятор!D17=Златоустгазстрой!C43,Златоустгазстрой!E43,IF(Калькулятор!D17=Златоустгазстрой!C44,Златоустгазстрой!E44,IF(Калькулятор!D17=Златоустгазстрой!C45,Златоустгазстрой!E45,IF(Калькулятор!D17=Златоустгазстрой!C46,Златоустгазстрой!E46,IF(D15=Златоустгазстрой!C27,Златоустгазстрой!E27,0))))))))),IF($G$2='реестр ГРО'!$B$611,IF(Калькулятор!D17=Классик!C39,Классик!E39,IF(Калькулятор!D17=Классик!C40,Классик!E40,IF(Калькулятор!D17=Классик!C41,Классик!E41,IF(Калькулятор!D17=Классик!C42,Классик!E42,IF(Калькулятор!D17=Классик!C43,Классик!E43,IF(Калькулятор!D17=Классик!C44,Классик!E44,IF(Калькулятор!D17=Классик!C45,Классик!E45,IF(Калькулятор!D17=Классик!C46,Классик!E46,IF(D15=Классик!C27,Классик!E27,0))))))))),IF($G$2='реестр ГРО'!$B$13,IF(Калькулятор!D17=МАГЭнерго!C39,МАГЭнерго!E39,IF(Калькулятор!D17=МАГЭнерго!C40,МАГЭнерго!E40,IF(Калькулятор!D17=МАГЭнерго!C41,МАГЭнерго!E41,IF(Калькулятор!D17=МАГЭнерго!C42,МАГЭнерго!E42,IF(Калькулятор!D17=МАГЭнерго!C43,МАГЭнерго!E43,IF(Калькулятор!D17=МАГЭнерго!C44,МАГЭнерго!E44,IF(Калькулятор!D17=МАГЭнерго!C45,МАГЭнерго!E45,IF(Калькулятор!D17=МАГЭнерго!C46,МАГЭнерго!E46,IF(D15=МАГЭнерго!C27,МАГЭнерго!E27,0))))))))),IF($G$2='реестр ГРО'!$B$14,IF(Калькулятор!D17=УКВЗ!C38,УКВЗ!E38,IF(Калькулятор!D17=УКВЗ!C39,УКВЗ!E39,IF(Калькулятор!D17=УКВЗ!C40,УКВЗ!E40,IF(Калькулятор!D17=УКВЗ!C41,УКВЗ!E41,IF(Калькулятор!D17=УКВЗ!C42,УКВЗ!E42,IF(Калькулятор!D17=УКВЗ!C43,УКВЗ!E43,IF(Калькулятор!D17=УКВЗ!C44,УКВЗ!E44,IF(Калькулятор!D17=УКВЗ!C45,УКВЗ!E45,IF(D15=УКВЗ!C26,УКВЗ!E26,0))))))))),IF($G$2='реестр ГРО'!$B$15,IF(Калькулятор!D17=СтандартЛимит!C38,СтандартЛимит!E38,IF(Калькулятор!D17=СтандартЛимит!C39,СтандартЛимит!E39,IF(Калькулятор!D17=СтандартЛимит!C40,СтандартЛимит!E40,IF(Калькулятор!D17=СтандартЛимит!C41,СтандартЛимит!E41,IF(Калькулятор!D17=СтандартЛимит!C42,СтандартЛимит!E42,IF(Калькулятор!D17=СтандартЛимит!C43,СтандартЛимит!E43,IF(Калькулятор!D17=СтандартЛимит!C44,СтандартЛимит!E44,IF(Калькулятор!D17=СтандартЛимит!C45,СтандартЛимит!E45,IF(D15=СтандартЛимит!C26,СтандартЛимит!E26,0))))))))),IF(Калькулятор!D17=Классик!C39,Классик!E39,IF(Калькулятор!D17=Классик!C40,Классик!E40,IF(Калькулятор!D17=Классик!C41,Классик!E41,IF(Калькулятор!D17=Классик!C42,Классик!E42,IF(Калькулятор!D17=Классик!C43,Классик!E43,IF(Калькулятор!D17=Классик!C44,Классик!E44,IF(Калькулятор!D17=Классик!C45,Классик!E45,IF(Калькулятор!D17=Классик!C46,Классик!E46,IF(D15=Классик!C27,Классик!E27,0))))))))))))))))))))))","v":0},null,null,{"$f":"IF(Калькулятор!D17=Газпром!C43,Газпром!E43,IF(Калькулятор!D17=Газпром!C44,Газпром!E44,IF(Калькулятор!D17=Газпром!C45,Газпром!E45,IF(Калькулятор!D17=Газпром!C46,Газпром!E46,IF(Калькулятор!D17=Газпром!C47,Газпром!E47,IF(Калькулятор!D17=Газпром!C48,Газпром!E48,IF(Калькулятор!D17=Газпром!C49,Газпром!E49,IF(Калькулятор!D17=Газпром!C50,Газпром!E50,IF(D15=Газпром!C31,Газпром!E31,0)))))))))","v":0},{"$f":"IF(Калькулятор!D17=Челябинскгоргаз!D40,Челябинскгоргаз!F40,IF(Калькулятор!D17=Челябинскгоргаз!D41,Челябинскгоргаз!F41,IF(Калькулятор!D17=Челябинскгоргаз!D42,Челябинскгоргаз!F42,IF(Калькулятор!D17=Челябинскгоргаз!D43,Челябинскгоргаз!F43,IF(Калькулятор!D17=Челябинскгоргаз!D44,Челябинскгоргаз!F44,IF(Калькулятор!D17=Челябинскгоргаз!D45,Челябинскгоргаз!F45,IF(Калькулятор!D17=Челябинскгоргаз!D46,Челябинскгоргаз!F46,IF(Калькулятор!D17=Челябинскгоргаз!D47,Челябинскгоргаз!F47,IF(D15=Челябинскгоргаз!D28,Челябинскгоргаз!F28,0)))))))))","v":0},{"$f":"IF(Калькулятор!D17=Станкомаш!C38,Станкомаш!E38,IF(Калькулятор!D17=Станкомаш!C39,Станкомаш!E39,IF(Калькулятор!D17=Станкомаш!C40,Станкомаш!E40,IF(Калькулятор!D17=Станкомаш!C41,Станкомаш!E41,IF(Калькулятор!D17=Станкомаш!C42,Станкомаш!E42,IF(Калькулятор!D17=Станкомаш!C43,Станкомаш!E43,IF(Калькулятор!D17=Станкомаш!C44,Станкомаш!E44,IF(Калькулятор!D17=Станкомаш!C45,Станкомаш!E45,IF(D15=Станкомаш!C26,Станкомаш!E26,0)))))))))","v":0},{"$f":"IF(Калькулятор!D17=МПОЭ!C39,МПОЭ!E39,IF(Калькулятор!D17=МПОЭ!C40,МПОЭ!E40,IF(Калькулятор!D17=МПОЭ!C41,МПОЭ!E41,IF(Калькулятор!D17=МПОЭ!C42,МПОЭ!E42,IF(Калькулятор!D17=МПОЭ!C43,МПОЭ!E43,IF(Калькулятор!D17=МПОЭ!C44,МПОЭ!E44,IF(Калькулятор!D17=МПОЭ!C45,МПОЭ!E45,IF(Калькулятор!D17=МПОЭ!C46,МПОЭ!E46,IF(D15=МПОЭ!C27,МПОЭ!E27,0)))))))))","v":0},{"$f":"IF(Калькулятор!D17=Теплоэнерго!C39,Теплоэнерго!E39,IF(Калькулятор!D17=Теплоэнерго!C40,Теплоэнерго!E40,IF(Калькулятор!D17=Теплоэнерго!C41,Теплоэнерго!E41,IF(Калькулятор!D17=Теплоэнерго!C42,Теплоэнерго!E42,IF(Калькулятор!D17=Теплоэнерго!C43,Теплоэнерго!E43,IF(Калькулятор!D17=Теплоэнерго!C44,Теплоэнерго!E45,IF(Калькулятор!D17=Теплоэнерго!C45,IF(Калькулятор!D17=Теплоэнерго!C46,Теплоэнерго!E46,IF(D15=Теплоэнерго!C27,Теплоэнерго!E27,0)))))))))","v":false},{"$f":"IF(Калькулятор!D17=Трансэнерго!C39,Трансэнерго!E39,IF(Калькулятор!D17=Трансэнерго!C40,Трансэнерго!E40,IF(Калькулятор!D17=Трансэнерго!C41,Трансэнерго!E41,IF(Калькулятор!D17=Трансэнерго!C42,Трансэнерго!E42,IF(Калькулятор!D17=Трансэнерго!C43,Трансэнерго!E43,IF(Калькулятор!D17=Трансэнерго!C44,Трансэнерго!E44,IF(Калькулятор!D17=Трансэнерго!C45,Трансэнерго!E45,IF(Калькулятор!D17=Трансэнерго!C46,Трансэнерго!E46,IF(D15=Трансэнерго!C27,Трансэнерго!E27,0)))))))))","v":0},{"$f":"IF(Калькулятор!D17=Озерскгаз!C39,Озерскгаз!E39,IF(Калькулятор!D17=Озерскгаз!C40,Озерскгаз!E40,IF(Калькулятор!D17=Озерскгаз!C41,Озерскгаз!E41,IF(Калькулятор!D17=Озерскгаз!C42,Озерскгаз!E42,IF(Калькулятор!D17=Озерскгаз!C43,Озерскгаз!E43,IF(Калькулятор!D17=Озерскгаз!C44,Озерскгаз!E44,IF(Калькулятор!D17=Озерскгаз!C45,Озерскгаз!E45,IF(Калькулятор!D17=Озерскгаз!C46,Озерскгаз!E46,IF(D15=Озерскгаз!C27,Озерскгаз!E27,0)))))))))","v":0},{"$f":"IF(Калькулятор!D17=Магнитогорскгазстрой!C39,Магнитогорскгазстрой!E39,IF(Калькулятор!D17=Магнитогорскгазстрой!C40,Магнитогорскгазстрой!E40,IF(Калькулятор!D17=Магнитогорскгазстрой!C41,Магнитогорскгазстрой!E41,IF(Калькулятор!D17=Магнитогорскгазстрой!C42,Магнитогорскгазстрой!E42,IF(Калькулятор!D17=Магнитогорскгазстрой!C43,Магнитогорскгазстрой!E43,IF(Калькулятор!D17=Магнитогорскгазстрой!C44,Магнитогорскгазстрой!E44,IF(Калькулятор!D17=Магнитогорскгазстрой!C45,Магнитогорскгазстрой!E45,IF(Калькулятор!D17=Магнитогорскгазстрой!C46,Магнитогорскгазстрой!E46,IF(D15=Магнитогорскгазстрой!C27,Магнитогорскгазстрой!E27,0)))))))))","v":0},{"$f":"IF(Калькулятор!D17=Златоустгазстрой!C39,Златоустгазстрой!E39,IF(Калькулятор!D17=Златоустгазстрой!C40,Златоустгазстрой!E40,IF(Калькулятор!D17=Златоустгазстрой!C41,Златоустгазстрой!E41,IF(Калькулятор!D17=Златоустгазстрой!C42,Златоустгазстрой!E42,IF(Калькулятор!D17=Златоустгазстрой!C43,Златоустгазстрой!E43,IF(Калькулятор!D17=Златоустгазстрой!C44,Златоустгазстрой!E44,IF(Калькулятор!D17=Златоустгазстрой!C45,Златоустгазстрой!E45,IF(Калькулятор!D17=Златоустгазстрой!C46,Златоустгазстрой!E46,IF(D15=Златоустгазстрой!C27,Златоустгазстрой!E27,0)))))))))","v":0},{"$f":"IF(Калькулятор!D17=Классик!C39,Классик!E39,IF(Калькулятор!D17=Классик!C40,Классик!E40,IF(Калькулятор!D17=Классик!C41,Классик!E41,IF(Калькулятор!D17=Классик!C42,Классик!E42,IF(Калькулятор!D17=Классик!C43,Классик!E43,IF(Калькулятор!D17=Классик!C44,Классик!E44,IF(Калькулятор!D17=Классик!C45,Классик!E45,IF(Калькулятор!D17=Классик!C46,Классик!E46,IF(D15=Классик!C27,Классик!E27,0)))))))))","v":0},{"$f":"IF(Калькулятор!D17=МАГЭнерго!C39,МАГЭнерго!E39,IF(Калькулятор!D17=МАГЭнерго!C40,МАГЭнерго!E40,IF(Калькулятор!D17=МАГЭнерго!C41,МАГЭнерго!E41,IF(Калькулятор!D17=МАГЭнерго!C42,МАГЭнерго!E42,IF(Калькулятор!D17=МАГЭнерго!C43,МАГЭнерго!E43,IF(Калькулятор!D17=МАГЭнерго!C44,МАГЭнерго!E44,IF(Калькулятор!D17=МАГЭнерго!C45,МАГЭнерго!E45,IF(Калькулятор!D17=МАГЭнерго!C46,МАГЭнерго!E46,IF(D15=МАГЭнерго!C27,МАГЭнерго!E27,0)))))))))","v":0},{"$f":"IF(Калькулятор!D17=УКВЗ!C38,УКВЗ!E38,IF(Калькулятор!D17=УКВЗ!C39,УКВЗ!E39,IF(Калькулятор!D17=УКВЗ!C40,УКВЗ!E40,IF(Калькулятор!D17=УКВЗ!C41,УКВЗ!E41,IF(Калькулятор!D17=УКВЗ!C42,УКВЗ!E42,IF(Калькулятор!D17=УКВЗ!C43,УКВЗ!E43,IF(Калькулятор!D17=УКВЗ!C44,УКВЗ!E44,IF(Калькулятор!D17=УКВЗ!C45,УКВЗ!E45,IF(D15=УКВЗ!C26,УКВЗ!E26,0)))))))))","v":0},{"$f":"IF(Калькулятор!D17=СтандартЛимит!C38,СтандартЛимит!E38,IF(Калькулятор!D17=СтандартЛимит!C39,СтандартЛимит!E39,IF(Калькулятор!D17=СтандартЛимит!C40,СтандартЛимит!E40,IF(Калькулятор!D17=СтандартЛимит!C41,СтандартЛимит!E41,IF(Калькулятор!D17=СтандартЛимит!C42,СтандартЛимит!E42,IF(Калькулятор!D17=СтандартЛимит!C43,СтандартЛимит!E43,IF(Калькулятор!D17=СтандартЛимит!C44,СтандартЛимит!E44,IF(Калькулятор!D17=СтандартЛимит!C45,СтандартЛимит!E45,IF(D15=СтандартЛимит!C26,СтандартЛимит!E26,0)))))))))","v":0}]
[]
[null,null,"Ставка на строительство газопроводов всех диаметров, материалов труб и типов прокладки газопроводов  ( 150 метров и менее)                                                    ",{"$f":"IF(D10=Газпром!C6,IF(D4='реестр ГРО'!B3,Газпром!E23,IF(D4='реестр ГРО'!B4,Челябинскгоргаз!F23,IF(D4='реестр ГРО'!B5,Станкомаш!E21,IF(D4='реестр ГРО'!B6,МПОЭ!E22,IF(D4='реестр ГРО'!B7,Трансэнерго!E22,IF(D4='реестр ГРО'!B8,Теплоэнерго!E22,IF(D4='реестр ГРО'!B9,Озерскгаз!E22,IF(D4='реестр ГРО'!B10,Магнитогорскгазстрой!E22,IF(D4='реестр ГРО'!B11,Златоустгазстрой!E22,IF(D4='реестр ГРО'!B12,Классик!E22,IF(D4='реестр ГРО'!B13,МАГЭнерго!E22,IF(D4='реестр ГРО'!B14,УКВЗ!E21,IF(D4='реестр ГРО'!B15,СтандартЛимит!E21,0))))))))))))),0)","v":0},null,null,null,null,null,null,null,"ИТОГ",{"$f":"IF(AND(D3=\"Юридические лица/индивидуальные предприниматели\",D6<=15,D5<=0.2,D7<=0.3,D8=\"нет\"),'Льгота (все 13 ГРО)'!C8,IF(AND(D3=\"Физические лица\",D6<=5,D5<=0.2,D7<=0.3,D8=\"нет\"),'Льгота (все 13 ГРО)'!C7,IF(D10=Газпром!C5,E10+(E12*F12+E13*F13+E14*F14+E15*D6+E16*D6)*'реестр ГРО'!A25+Калькулятор!E17*Калькулятор!F17,IF(D10=Газпром!C6,E10*D6+(D19*D6+E15*D6+E16*D6)*'реестр ГРО'!A25+SUMPRODUCT(E17:E17,F17:F17),IF(D3=\"Юридические лица/индивидуальные предприниматели\",IF(AND(D6<=15,D5<=0.2,D7<=0.3,D8=\"нет\"),'Льгота (все 13 ГРО)'!C8,IF(D10=Газпром!C5,E10+(E12*F12+E13*F13+E14*F14+E15*D6+E16*D6)*'реестр ГРО'!A25+Калькулятор!E17*Калькулятор!F17,0)))))))","v":0}]
[]
[null,null,{"$f":"IF(AND(D3=\"Юридические лица/индивидуальные предприниматели\",D5<=0.2,D6<=15,D7<=0.3,D8=\"нет\"),\"При данных условиях подключения заявитель относится к льготной категории!!!\",\"\")","v":""}]
[null,null,{"$f":"IF(AND(D3=\"Физические лица\",D5<=0.2,D6<=5,D7<=0.3,D8=\"нет\"),\"При данных условиях подключения заявитель относится к льготной категории!!!\",\"\")","v":""}]
[]
[]
[null,null,"Плата за технологическое присоединение, руб.*",24884.23,null,null,null,null,null,null,"Более 150",null,"Менее 150"]
[null,null,"*Льготная плата:  для физических лиц - с учетом НДС, для юридических лиц- без учета НДС\n  Плата с применением ставок - без учета НДС",null,null,{"$f":"IF(B10=Газпром!A5,I26,IF(B10=Газпром!A6,K26,0))","v":0},null,{"$f":"E10+(E12*F12+E13*F13+E14*F14+E15*D6+E9*D6)*'реестр ГРО'!A25+Калькулятор!E17*Калькулятор!F17","v":0},null,null,{"$f":"E10+(E12*F12+E13*F13+E14*F14+E15*D6+E20*D6)*'реестр ГРО'!A25+Калькулятор!E17*Калькулятор!F17","v":0},null,{"$f":"E10*D6+(D19*D6+E15*D6+E20*D6)*'реестр ГРО'!A25+SUMPRODUCT(E17:E18,F17:F18)","v":0}]
[null,null,"ВНИМАНИЕ! Данные расчеты носят справочный характер и не могут являться окончательными для оплаты стоимости технологического присоединения. Калькулятор расчета платы за технологическое присоединение к сетям газораспределения предназначен для примерного расчета стоимости размера платы за технологическое присоединение к сетям газораспределения газораспределительных организаций Челябинской области.",null,null,null,null,null,null,null,{"$f":"IF(D10=Газпром!C5,K26,0)","v":0}]
[]
[]
[]
[]
[null,null,null,"менее 150","более 150"]
[]
[null,null,null,{"$f":"E10*D6+(D19*D6+E15*D6+E9*D6)*5.91+E17*F17","v":0},{"$f":"E10+(E12*F12+E13*F13+E14*F14+E15*D6+E9*D6)*5.91+E17*F17","v":0}]
[]
[]
[]
[]
[null,null,null,"до 150","более 150"]
[null,null,null,{"$f":"E10*D6+(D19*D6+E15*D6+E9*D6)*5.91+E17*F17","v":0},{"$f":"E10+(E12*F12+E13*F13+E14*F14+E15*D6+E9*D6)*5.91+E17*F17","v":0}]
[]
[]
[]
[]
[]
[]
[]
[]
[]
[]
[]
[]
[]
[]
[]
[]
[null,null,null,null,null,null,null,null,null,"да"]
[null,null,null,null,null,null,null,null,null,"нет"]

{"sheet":"Льгота (все 13 ГРО)","index":2,"n_rows":8,"n_cols":3,"rows_kept":8,"cut":false,"hidden":false,"merged":[[3,1,5,1],[1,0,1,2],[3,0,5,0]]}
[]
["ЛЬГОТНАЯ ПЛАТА\nза технологическое присоединение газоиспользующего оборудования \nк сетям газораспределения ГРО на 2018 год\n"]
[]
["№  п/п","Наименование","Размер платы за технологическое присоединение, руб."]
[null,null,"протяженность строящегося газопровода-ввода от сети газораспределения  до границы земельного участка заявителя"]
[null,null,"до 200 метров включительно"]
[1,"\nЗаявители, не намеревающиеся использовать газ для предпринимательской (коммерческой) деятельности с максимальным расходом газа газоиспользующего оборудования не более 5 куб. метров в час с учетом расхода газа ранее подключенного в данной точке подключения газоиспользующего оборудования при условии, что расстояние от газоиспользующего оборудования \nдо сети газораспределения ГРО с проектным рабочим давлением не более 0,3 Мпа, измеряемое по прямой линии, составляет не более 200 метров и сами мероприятия предполагают строительство только газопроводов-вводов (без устройства пунктов редуцирования газа)",24884.23]
[2,"Заявители, намеревающиеся использовать газ для предпринимательской (коммерческой) деятельности с максимальным расходом газа газоиспользующего оборудования не более 15 куб. метров в час  с учетом расхода газа ранее подключенного в данной точке подключения газоиспользующего оборудования   при условии, что расстояние от газоиспользующего оборудования \nдо сети газораспределения ГРО с проектным рабочим давлением не более 0,3 Мпа, измеряемое по прямой линии, составляет не более 200 метров и сами мероприятия предполагают строительство только газопроводов-вводов (без устройства пунктов редуцирования газа)",52720.81]

{"sheet":"Газпром","index":3,"n_rows":50,"n_cols":6,"rows_kept":50,"cut":false,"hidden":false,"merged":[[40,2,40,4],[1,0,1,4],[2,1,2,2],[6,2,6,4],[16,2,16,4],[23,2,23,4]]}
[]
["Стандартизированные тарифные ставки, применяемые для расчета величины платы \nза технологическое присоединение газоиспользующего оборудования к сетям газораспределения АО «Газпром газораспределение Челябинск», на 2018 год "]
["№ п/п ","Наименование стандартизированной тарифной ставки",null,"Единица измерения","Величина стандартизированной тарифной ставки                 (без учета НДС)"]
[1,2,3,4,5]
[1,"C1","более 150 метров ","руб.",126867.23]
[2,"C2","150 метров и менее","руб./куб. м в час","2407,62"]
[3,"C3ij","Стандартизированная тарифная ставка на покрытие расходов ГРО, связанных со строительством (реконструкцией) стального газопровода i-го диапазона диаметров и j-го типа прокладки для случаев, когда протяженность строящейся (реконструируемой) сети газораспределения, измеряемая по прямой линии от границы земельного участка до сети газораспределения ГРО, составляет более 150 метров (в ценах 2001 года)"]
[null,null,null,null,0]
[null,null,"158 мм и менее Стальные газопроводы, наземная (надземная) прокладка","руб./км",174542.71]
[null,null,"159 - 218 мм Стальные газопроводы, наземная (надземная) прокладка","руб./км",377963.98]
[null,null,"219 - 272 мм Стальные газопроводы, наземная (надземная) прокладка","руб./км",563862.14]
[null,null,"273 - 324 мм Стальные газопроводы (надземная) прокладка","руб./км",638563.76]
[null,null,"158 мм и менее Стальные газопроводы, подземная  прокладка","руб./км",240862.99]
[null,null," 159 - 218 мм Стальные газопроводы, подземная прокладка","руб./км",363868.85]
[null,null,"219 - 272 мм Стальные газопроводы, подземная прокладка","руб./км",477539.08]
[null,null,"273 - 324 мм Стальные газопроводы, подземная прокладка","руб./км",778865.79]
[4,"C4k","Стандартизированная тарифная ставка на покрытие расходов ГРО, связанных со строительством (реконструкцией) полиэтиленового газопровода k-го диапазона диаметров (в ценах 2001 года)"]
[null,null,null,null,0]
[null,null,"109 мм и менее,  полиэтиленовый газопровод","руб./км",161936.95000000001]
[null,null,"110 - 159 мм, полиэтиленовый газопровод","руб./км",177286.9]
[null,null,"160 - 224 мм,  полиэтиленовый газопровод","руб./км",336664.46]
[null,null,"225 - 314 мм,  полиэтиленовый газопровод","руб./км",435797.73]
[5,"C5","Стандартизированная тарифная ставка на покрытие расходов ГРО, связанных со строительством (реконструкцией) газопроводов всех диаметров, материалов труб и типов прокладки для случаев, когда протяженность строящейся (реконструируемой) сети газораспределения, измеряемая по прямой линии от границы земельного участка до сети газораспределения ГРО, составляет 150 метров и менее (в ценах 2001 года)","руб./куб. м в час",1015.04]
[6,"C6n","Стандартизированная тарифная ставка на покрытие расходов ГРО, связанных со строительством (реконструкцией) газорегуляторных пунктов n-го диапазона максимального часового расхода газа (в ценах 2001 года)"]
[null,null,null,null,0]
[null,null,"до 40 куб. метров в час","руб./куб. м в час",860.5]
[null,null,"40 - 99 куб. метров в час","руб./куб. м в час",234.41]
[null,null,"100 - 999 куб.метров в час","руб./куб. м в час",91.25]
[null,null,"400 - 999 куб. метров в час","руб./куб. м в час",32.35]
[null,null,"1000 - 1999 куб. метров в час","руб./куб. м в час",30.43]
[null,null,"2000 - 2999 куб. метров в час","руб./куб. м в час",26.14]
[null,null,"3000 - 3999 куб. метров в час","руб./куб. м в час",21.36]
[null,null,"4000 - 4999 куб. метров в час","руб./куб. м в час",11.27]
[null,null,"5000 - 9999 куб. метров в час","руб./куб. м в час",5.63,5.43]
[null,null,"10000 - 19999 куб. метров в час","руб./куб. м в час",5.55]
[null,null,"20000 - 29999 куб. метров в час","руб./куб. м в час",3.69]
[7,"C7","Стандартизированная тарифная ставка на покрытие расходов ГРО, связанных со строительством (реконструкцией) станций катодной защиты (в ценах 2001 года)","руб./куб. м в час",341.95]
[]
[]
[]
[8,"С8ik","Стандартизированная тарифная ставка на покрытие расходов ГРО, связанных с проверкой выполнения Заявителем технических условий и осуществлением фактического подключения  (технологического присоединения) объектов капитального строительства Заявителя к сети газораспределения посредством осуществления комплекса технических мероприятий, обеспечивающих физическое соединение (контакт) объектов исполнителя и стального газопровода ГРО i-го диапазона диаметров (полиэтиленового газопровода ГРО k-го диапазона диаметров), и проведением пуска газа"]
[]
[null,null,"158 мм и менее Стальные газопроводы ","руб.",5895.45]
[null,null,"159 - 218 мм Стальные газопроводы ","руб.",13451.6]
[null,null,"219 - 272 мм Стальные газопроводы ","руб.",16336.38]
[null,null,"273 - 324 мм Стальные газопроводы ","руб.",18233.61]
[null,null,"109 мм и менее Полиэтиленовые газопроводы ","руб.",5013.49]
[null,null,"110 - 159 мм Полиэтиленовые газопроводы ","руб.",6301.49]
[null,null,"160 - 224 мм Полиэтиленовые газопроводы ","руб.",8213.94]
[null,null,"225-314 мм Полиэтиленовые газопроводы ","руб.",11835.56]

{"sheet":"Челябинскгоргаз","index":4,"n_rows":47,"n_cols":6,"rows_kept":47,"cut":false,"hidden":false,"merged":[[37,3,37,5],[1,1,1,5],[6,3,6,5],[2,2,2,3]]}
[]
[null,"Стандартизированные тарифные ставки, применяемые для расчета величины платы \nза технологическое присоединение газоиспользующего оборудования к сетям газораспределения АО «Челябинскгоргаз», на 2018 год "]
[null,"№ п/п ","Наименование стандартизированной тарифной ставки",null,"Единица измерения","Величина стандартизированной тарифной ставки                 (без учета НДС)"]
[null,1,2,3,4,5]
[null,1,"C1","Стандартизированная тарифная ставка на покрытие расходов ГРО, связанных с разработкой проектной документации для случаев, когда протяженность строящейся (реконструируемой) сети газораспределения, измеряемая по прямой линии от границы земельного участка до сети газораспределения ГРО, составляет более 150 метров","руб.",162605.82999999999]
[null,2,"C2","Стандартизированная тарифная ставка на покрытие расходов ГРО, связанных с разработкой проектной документации для случаев, когда протяженность строящейся (реконструируемой) сети газораспределения, измеряемая по прямой линии от границы земельного участка до сети газораспределения ГРО, составляет 150 метров и менее","руб./куб. м в час",2513.83]
[null,3,"C3ij","Стандартизированная тарифная ставка на покрытие расходов ГРО, связанных со строительством (реконструкцией) стального газопровода i-го диапазона диаметров и j-го типа прокладки для случаев, когда протяженность строящейся (реконструируемой) сети газораспределения, измеряемая по прямой линии от границы земельного участка до сети газораспределения ГРО, составляет более 150 метров (в ценах 2001 года)"]
[null,null,null,null,null,0]
[null,null,null,"158 мм и менее Стальные газопроводы, наземная (надземная) прокладка","руб./км",167421.14000000001]
[null,null,null,"159 - 218 мм Стальные газопроводы, наземная (надземная) прокладка","руб./км",351873.95]
[null,null,null,"219 - 272 мм Стальные газопроводы, наземная (надземная) прокладка","руб./км",431383.37]
[null,null,null,"273 - 324 мм Стальные газопроводы (надземная) прокладка","руб./км",483322.36]
[null,null,null,"158 мм и менее Стальные газопроводы, подземная  прокладка","руб./км",458444.72]
[null,null,null," 159 - 218 мм Стальные газопроводы, подземная прокладка","руб./км",585086.4]
[null,null,null,"219 - 272 мм Стальные газопроводы, подземная прокладка","руб./км",698484.31]
[null,null,null,"273 - 324 мм Стальные газопроводы, подземная прокладка","руб./км",926835.24]
[null,4,"C4k","Стандартизированная тарифная ставка на покрытие расходов ГРО, связанных со строительством (реконструкцией) полиэтиленового газопровода k-го диапазона диаметров (в ценах  2001 года)"]
[null,null,null,null,null,0]
[null,null,null,"109 мм и менее,  полиэтиленовый газопровод","руб./км",375125.86]
[null,null,null,"110 - 159 мм, полиэтиленовый газопровод","руб./км",405779.05]
[null,null,null,"160 - 224 мм,  полиэтиленовый газопровод","руб./км",578787.75]
[null,null,null,"225 - 314 мм,  полиэтиленовый газопровод","руб./км",654631.57999999996]
[null,5,"C5","Стандартизированная тарифная ставка на покрытие расходов ГРО, связанных со строительством (реконструкцией) газопроводов всех диаметров, материалов труб и типов прокладки для случаев, когда протяженность строящейся (реконструируемой) сети газораспределения, измеряемая по прямой линии от границы земельного участка до сети газораспределения ГРО, составляет 150 метров и менее (в ценах  2001 года)","руб./куб. м в час",1170.74]
[null,6,"C6n","Стандартизированная тарифная ставка на покрытие расходов ГРО, связанных со строительством (реконструкцией) газорегуляторных пунктов n-го диапазона максимального часового расхода газа (в ценах  2001 года)"]
[null,null,null,null,null,0]
[null,null,null,"до 40 куб. метров в час","руб./куб. м в час",556.37]
[null,null,null,"40 - 99 куб. метров в час","руб./куб. м в час",222.55]
[null,null,null,"100 - 999 куб.метров в час","руб./куб. м в час",80.89]
[null,null,null,"400 - 999 куб. метров в час","руб./куб. м в час",32.35]
[null,null,null,"1000 - 1999 куб. метров в час","руб./куб. м в час",30.43]
[null,null,null,"2000 - 2999 куб. метров в час","руб./куб. м в час",26.14]
[null,null,null,"3000 - 3999 куб. метров в час","руб./куб. м в час",21.36]
[null,null,null,"4000 - 4999 куб. метров в час","руб./куб. м в час",11.27]
[null,null,null,"5000 - 9999 куб. метров в час","руб./куб. м в час",5.63]
[null,null,null,"10000 - 19999 куб. метров в час","руб./куб. м в час",5.55]
[null,null,null,"20000 - 29999 куб. метров в час","руб./куб. м в час",3.69]
[null,7,"C7","Стандартизированная тарифная ставка на покрытие расходов ГРО, связанных со строительством (реконструкцией) станций катодной защиты (в ценах 2001 года)","руб./куб. м в час",484.3]
[null,8,"С8ik","Стандартизированная тарифная ставка на покрытие расходов ГРО, связанных с проверкой выполнения Заявителем технических условий и осуществлением фактического подключения  (технологического присоединения) объектов капитального строительства Заявителя к сети газораспределения посредством осуществления комплекса технических мероприятий, обеспечивающих физическое соединение (контакт) объектов исполнителя и стального газопровода ГРО i-го диапазона диаметров (полиэтиленового газопровода ГРО k-го диапазона диаметров), и проведением пуска газа"]
[null,null,null,null,null,0]
[null,null,null,"158 мм и менее Стальные газопроводы ","руб.",5895.45]
[null,null,null,"159 - 218 мм Стальные газопроводы ","руб.",13451.6]
[null,null,null,"219 - 272 мм Стальные газопроводы ","руб.",16336.38]
[null,null,null,"273 - 324 мм Стальные газопроводы ","руб.",18233.61]
[null,null,null,"109 мм и менее Полиэтиленовые газопроводы ","руб.",5013.2700000000004]
[null,null,null,"110 - 159 мм Полиэтиленовые газопроводы ","руб.",6301.49]
[null,null,null,"160 - 224 мм Полиэтиленовые газопроводы ","руб.",8213.94]
[null,null,null,"225-314 мм Полиэтиленовые газопроводы ","руб.",11835.56]

{"sheet":"Станкомаш","index":5,"n_rows":45,"n_cols":6,"rows_kept":45,"cut":false,"hidden":false,"merged":[[1,0,1,4],[5,2,5,4],[2,1,2,2]]}
[]
["Стандартизированные тарифные ставки, применяемые для расчета величины платы \nза технологическое присоединение газоиспользующего оборудования к сетям газораспределения ООО Индустриальный парк «Станкомаш», на 2018 год "]
["№ п/п ","Наименование стандартизированной тарифной ставки",null,"Единица измерения","Величина стандартизированной тарифной ставки                 (без учета НДС)"]
[1,"C1","Стандартизированная тарифная ставка на покрытие расходов ГРО, связанных с разработкой проектной документации для случаев, когда протяженность строящейся (реконструируемой) сети газораспределения, измеряемая по прямой линии от границы земельного участка до сети газораспределения ГРО, составляет более 150 метров","руб.",81776.5]
[2,"C2","Стандартизированная тарифная ставка на покрытие расходов ГРО, связанных с разработкой проектной документации для случаев, когда протяженность строящейся (реконструируемой) сети газораспределения, измеряемая по прямой линии от границы земельного участка до сети газораспределения ГРО, составляет 150 метров и менее","руб./куб. м в час",1828.48,1763.24]
[3,"C3ij","Стандартизированная тарифная ставка на покрытие расходов ГРО, связанных со строительством (реконструкцией) стального газопровода i-го диапазона диаметров и j-го типа прокладки для случаев, когда протяженность строящейся (реконструируемой) сети газораспределения, измеряемая по прямой линии от границы земельного участка до сети газораспределения ГРО, составляет более 150 метров (в ценах  2001 года)"]
[null,null,null,null,0]
[null,null,"158 мм и менее Стальные газопроводы, наземная (надземная) прокладка","руб./км",148226.67000000001]
[null,null,"159 - 218 мм Стальные газопроводы, наземная (надземная) прокладка","руб./км",311532.34999999998]
[null,null,"219 - 272 мм Стальные газопроводы, наземная (надземная) прокладка","руб./км",381926.2]
[null,null,"273 - 324 мм Стальные газопроводы (надземная) прокладка","руб./км",427910.48]
[null,null,"158 мм и менее Стальные газопроводы, подземная  прокладка","руб./км",218895.29]
[null,null," 159 - 218 мм Стальные газопроводы, подземная прокладка","руб./км",329273.65000000002]
[null,null,"219 - 272 мм Стальные газопроводы, подземная прокладка","руб./км",417373.6]
[null,null,"273 - 324 мм Стальные газопроводы, подземная прокладка","руб./км",617294.47]
[4,"C4k","Стандартизированная тарифная ставка на покрытие расходов ГРО, связанных со строительством (реконструкцией) полиэтиленового газопровода k-го диапазона диаметров (в ценах  2001 года)"]
[null,null,"109 мм и менее,  полиэтиленовый газопровод","руб./км",147154.39000000001]
[null,null,"110 - 159 мм, полиэтиленовый газопровод","руб./км",172152.03]
[null,null,"160 - 224 мм,  полиэтиленовый газопровод","руб./км",311857.39]
[null,null,44,"руб./км",374602.83]
[5,"C5","Стандартизированная тарифная ставка на покрытие расходов ГРО, связанных со строительством (реконструкцией) газопроводов всех диаметров, материалов труб и типов прокладки для случаев, когда протяженность строящейся (реконструируемой) сети газораспределения, измеряемая по прямой линии от границы земельного участка до сети газораспределения ГРО, составляет 150 метров и менее (в ценах  2001 года)","руб./куб. м в час",851.56]
[6,"C6n","Стандартизированная тарифная ставка на покрытие расходов ГРО, связанных со строительством (реконструкцией) газорегуляторных пунктов n-го диапазона максимального часового расхода газа (в ценах  2001 года)"]
[null,null,null,null,0]
[null,null,"до 40 куб. метров в час","руб./куб. м в час",517.61]
[null,null,"40 - 99 куб. метров в час","руб./куб. м в час",207.05]
[null,null,"100 - 999 куб.метров в час","руб./куб. м в час",74.88]
[null,null,"400 - 999 куб. метров в час","руб./куб. м в час",29.95]
[null,null,"1000 - 1999 куб. метров в час","руб./куб. м в час",28.02]
[null,null,"2000 - 2999 куб. метров в час","руб./куб. м в час",24.05]
[null,null,"3000 - 3999 куб. метров в час","руб./куб. м в час",19.64]
[null,null,"4000 - 4999 куб. метров в час","руб./куб. м в час",10.38]
[null,null,"5000 - 9999 куб. метров в час","руб./куб. м в час",5.2]
[null,null,"10000 - 19999 куб. метров в час","руб./куб. м в час",5.09]
[null,null,"20000 - 29999 куб. метров в час","руб./куб. м в час",3.39]
[7,"C7","Стандартизированная тарифная ставка на покрытие расходов ГРО, связанных со строительством (реконструкцией) станций катодной защиты (в ценах 2001 года)","руб./куб. м в час",455.78]
[8,"С8ik","Стандартизированная тарифная ставка на покрытие расходов ГРО, связанных с проверкой выполнения Заявителем технических условий и осуществлением фактического подключения  (технологического присоединения) объектов капитального строительства Заявителя к сети газораспределения посредством осуществления комплекса технических мероприятий, обеспечивающих физическое соединение (контакт) объектов исполнителя и стального газопровода ГРО i-го диапазона диаметров (полиэтиленового газопровода ГРО k-го диапазона диаметров), и проведением пуска газа"]
[null,null,null,null,0]
[null,null,"158 мм и менее Стальные газопроводы ","руб.",5762.71]
[null,null,"159 - 218 мм Стальные газопроводы ","руб.",12751.66]
[null,null,"219 - 272 мм Стальные газопроводы ","руб.",15408.51]
[null,null,"273 - 324 мм Стальные газопроводы ","руб.",17202.11]
[null,null,"109 мм и менее Полиэтиленовые газопроводы ","руб.",4813.9799999999996]
[null,null,"110 - 159 мм Полиэтиленовые газопроводы ","руб.",6052.6]
[null,null,"160 - 224 мм Полиэтиленовые газопроводы ","руб.",7876.12]
[null,null,"225-314 мм Полиэтиленовые газопроводы ","руб.",11286.96]

{"sheet":"МПОЭ","index":6,"n_rows":46,"n_cols":5,"rows_kept":46,"cut":false,"hidden":false,"merged":[[1,0,1,4],[6,2,6,4],[2,1,2,2]]}
[]
["Стандартизированные тарифные ставки, применяемые для расчета величины платы \nза технологическое присоединение газоиспользующего оборудования к сетям газораспределения МУП «Многоотраслевое производственное объединение энергосетей» г. Трехгорного, на 2017 год"]
["№ п/п ","Наименование стандартизированной тарифной ставки",null,"Единица измерения","Величина стандартизированной тарифной ставки                 (без учета НДС)"]
[1,2,3,4,5]
[1,"C1","Стандартизированная тарифная ставка на покрытие расходов ГРО, связанных с разработкой проектной документации для случаев, когда протяженность строящейся (реконструируемой) сети газораспределения, измеряемая по прямой линии от границы земельного участка до сети газораспределения ГРО, составляет более 150 метров","руб.",45678.76]
[2,"C2","Стандартизированная тарифная ставка на покрытие расходов ГРО, связанных с разработкой проектной документации для случаев, когда протяженность строящейся (реконструируемой) сети газораспределения, измеряемая по прямой линии от границы земельного участка до сети газораспределения ГРО, составляет 150 метров и менее","руб./куб. м в час",640.58000000000004]
[3,"C3ij","Стандартизированная тарифная ставка на покрытие расходов ГРО, связанных со строительством (реконструкцией) стального газопровода i-го диапазона диаметров и j-го типа прокладки для случаев, когда протяженность строящейся (реконструируемой) сети газораспределения, измеряемая по прямой линии от границы земельного участка до сети газораспределения ГРО, составляет более 150 метров (в ценах  2001 года)"]
[null,null,null,null,0]
[null,null,"158 мм и менее Стальные газопроводы, наземная (надземная) прокладка","руб./км",142363.93]
[null,null,"159 - 218 мм Стальные газопроводы, наземная (надземная) прокладка","руб./км",377963.98]
[null,null,"219 - 272 мм Стальные газопроводы, наземная (надземная) прокладка","руб./км",563862.14]
[null,null,"273 - 324 мм Стальные газопроводы (надземная) прокладка","руб./км",638563.76]
[null,null,"158 мм и менее Стальные газопроводы, подземная  прокладка","руб./км",187960]
[null,null," 159 - 218 мм Стальные газопроводы, подземная прокладка","руб./км",363868.85]
[null,null,"219 - 272 мм Стальные газопроводы, подземная прокладка","руб./км",477539.08]
[null,null,"273 - 324 мм Стальные газопроводы, подземная прокладка","руб./км",778865.79]
[4,"C4k","Стандартизированная тарифная ставка на покрытие расходов ГРО, связанных со строительством (реконструкцией) полиэтиленового газопровода k-го диапазона диаметров (в ценах 2001 года)"]
[null,null,"109 мм и менее,  полиэтиленовый газопровод","руб./км",120010]
[null,null,"110 - 159 мм, полиэтиленовый газопровод","руб./км",177286.9]
[null,null,"160 - 224 мм,  полиэтиленовый газопровод","руб./км",336664.46]
[null,null,"225 - 314 мм,  полиэтиленовый газопровод","руб./км",435797.73]
[5,"C5","Стандартизированная тарифная ставка на покрытие расходов ГРО, связанных со строительством (реконструкцией) газопроводов всех диаметров, материалов труб и типов прокладки для случаев, когда протяженность строящейся (реконструируемой) сети газораспределения, измеряемая по прямой линии от границы земельного участка до сети газораспределения ГРО, составляет 150 метров и менее (в ценах 2001 года)","руб./куб. м в час",471.02]
[6,"C6n","Стандартизированная тарифная ставка на покрытие расходов ГРО, связанных со строительством (реконструкцией) газорегуляторных пунктов n-го диапазона максимального часового расхода газа (в ценах  2001 года)"]
[null,null,null,null,0]
[null,null,"до 40 куб. метров в час","руб./куб. м в час",529.77]
[null,null,"40 - 99 куб. метров в час","руб./куб. м в час",211.91]
[null,null,"100 - 999 куб.метров в час","руб./куб. м в час",76.63]
[null,null,"400 - 999 куб. метров в час","руб./куб. м в час",30.65]
[null,null,"1000 - 1999 куб. метров в час","руб./куб. м в час",28.68]
[null,null,"2000 - 2999 куб. метров в час","руб./куб. м в час",24.62]
[null,null,"3000 - 3999 куб. метров в час","руб./куб. м в час",20.11]
[null,null,"4000 - 4999 куб. метров в час","руб./куб. м в час",10.63]
[null,null,"5000 - 9999 куб. метров в час","руб./куб. м в час",5.31]
[null,null,"10000 - 19999 куб. метров в час","руб./куб. м в час",5.22]
[null,null,"20000 - 29999 куб. метров в час","руб./куб. м в час",3.47]
[7,"C7","Стандартизированная тарифная ставка на покрытие расходов ГРО, связанных со строительством (реконструкцией) станций катодной защиты (в ценах 2001 года)","руб./куб. м в час",466.49]
[8,"С8ik","Стандартизированная тарифная ставка на покрытие расходов ГРО, связанных с проверкой выполнения Заявителем технических условий и осуществлением фактического подключения  (технологического присоединения) объектов капитального строительства Заявителя к сети газораспределения посредством осуществления комплекса технических мероприятий, обеспечивающих физическое соединение (контакт) объектов исполнителя и стального газопровода ГРО i-го диапазона диаметров (полиэтиленового газопровода ГРО k-го диапазона диаметров), и проведением пуска газа"]
[null,null,null,null,0]
[null,null,"158 мм и менее Стальные газопроводы ","руб.",5762.71]
[null,null,"159 - 218 мм Стальные газопроводы ","руб.",12751.66]
[null,null,"219 - 272 мм Стальные газопроводы ","руб.",15408.51]
[null,null,"273 - 324 мм Стальные газопроводы ","руб.",17202.11]
[null,null,"109 мм и менее Полиэтиленовые газопроводы ","руб.",4813.9799999999996]
[null,null,"110 - 159 мм Полиэтиленовые газопроводы ","руб.",6052.6]
[null,null,"160 - 224 мм Полиэтиленовые газопроводы ","руб.",7876.12]
[null,null,"225-314 мм Полиэтиленовые газопроводы ","руб.",11286.96]

{"sheet":"Трансэнерго","index":7,"n_rows":46,"n_cols":5,"rows_kept":46,"cut":false,"hidden":false,"merged":[[1,0,1,4],[6,2,6,4],[2,1,2,2]]}
[]
["Стандартизированные тарифные ставки, применяемые для расчета величины платы \nза технологическое присоединение газоиспользующего оборудования к сетям газораспределения АО «Трансэнерго», на 2018 год"]
["№ п/п ","Наименование стандартизированной тарифной ставки",null,"Единица измерения","Величина стандартизированной тарифной ставки                 (без учета НДС)"]
[1,2,3,4,5]
[1,"C1","Стандартизированная тарифная ставка на покрытие расходов ГРО, связанных с разработкой проектной документации для случаев, когда протяженность строящейся (реконструируемой) сети газораспределения, измеряемая по прямой линии от границы земельного участка до сети газораспределения ГРО, составляет более 150 метров","руб.",45678.76]
[2,"C2","Стандартизированная тарифная ставка на покрытие расходов ГРО, связанных с разработкой проектной документации для случаев, когда протяженность строящейся (реконструируемой) сети газораспределения, измеряемая по прямой линии от границы земельного участка до сети газораспределения ГРО, составляет 150 метров и менее","руб./куб. м в час",640.58000000000004]
[3,"C3ij","Стандартизированная тарифная ставка на покрытие расходов ГРО, связанных со строительством (реконструкцией) стального газопровода i-го диапазона диаметров и j-го типа прокладки для случаев, когда протяженность строящейся (реконструируемой) сети газораспределения, измеряемая по прямой линии от границы земельного участка до сети газораспределения ГРО, составляет более 150 метров (в ценах  2001 года)"]
[null,null,null,null,0]
[null,null,"158 мм и менее Стальные газопроводы, наземная (надземная) прокладка","руб./км",142363.93]
[null,null,"159 - 218 мм Стальные газопроводы, наземная (надземная) прокладка","руб./км",377963.98]
[null,null,"219 - 272 мм Стальные газопроводы, наземная (надземная) прокладка","руб./км",563862.14]
[null,null,"273 - 324 мм Стальные газопроводы (надземная) прокладка","руб./км",638563.76]
[null,null,"158 мм и менее Стальные газопроводы, подземная  прокладка","руб./км",187960]
[null,null," 159 - 218 мм Стальные газопроводы, подземная прокладка","руб./км",363868.85]
[null,null,"219 - 272 мм Стальные газопроводы, подземная прокладка","руб./км",477539.08]
[null,null,"273 - 324 мм Стальные газопроводы, подземная прокладка","руб./км",778865.79]
[4,"C4k","Стандартизированная тарифная ставка на покрытие расходов ГРО, связанных со строительством (реконструкцией) полиэтиленового газопровода k-го диапазона диаметров (в ценах  2001 года)"]
[null,null,"109 мм и менее,  полиэтиленовый газопровод","руб./км",120010]
[null,null,"110 - 159 мм, полиэтиленовый газопровод","руб./км",177286.9]
[null,null,"160 - 224 мм,  полиэтиленовый газопровод","руб./км",336664.46]
[null,null,"225 - 314 мм,  полиэтиленовый газопровод","руб./км",435797.73]
[5,"C5","Стандартизированная тарифная ставка на покрытие расходов ГРО, связанных со строительством (реконструкцией) газопроводов всех диаметров, материалов труб и типов прокладки для случаев, когда протяженность строящейся (реконструируемой) сети газораспределения, измеряемая по прямой линии от границы земельного участка до сети газораспределения ГРО, составляет 150 метров и менее (в ценах  2001 года)","руб./куб. м в час",471.02]
[6,"C6n","Стандартизированная тарифная ставка на покрытие расходов ГРО, связанных со строительством (реконструкцией) газорегуляторных пунктов n-го диапазона максимального часового расхода газа (в ценах  2001 года)"]
[null,null,null,null,0]
[null,null,"до 40 куб. метров в час","руб./куб. м в час",529.77]
[null,null,"40 - 99 куб. метров в час","руб./куб. м в час",211.91]
[null,null,"100 - 399  куб. метров в час","руб./куб. м в час",76.63]
[null,null,"100 - 999 куб.метров в час","руб./куб. м в час",30.65]
[null,null,"1000 - 1999 куб. метров в час","руб./куб. м в час",28.68]
[null,null,"2000 - 2999 куб. метров в час","руб./куб. м в час",24.62]
[null,null,"3000 - 3999 куб. метров в час","руб./куб. м в час",20.11]
[null,null,"4000 - 4999 куб. метров в час","руб./куб. м в час",10.63]
[null,null,"5000 - 9999 куб. метров в час","руб./куб. м в час",5.31]
[null,null,"10000 - 19999 куб. метров в час","руб./куб. м в час",5.22]
[null,null,"20000 - 29999 куб. метров в час","руб./куб. м в час",3.47]
[7,"C7","Стандартизированная тарифная ставка на покрытие расходов ГРО, связанных со строительством (реконструкцией) станций катодной защиты (в ценах 2001 года)","руб./куб. м в час",466.49]
[8,"С8ik","Стандартизированная тарифная ставка на покрытие расходов ГРО, связанных с проверкой выполнения Заявителем технических условий и осуществлением фактического подключения  (технологического присоединения) объектов капитального строительства Заявителя к сети газораспределения посредством осуществления комплекса технических мероприятий, обеспечивающих физическое соединение (контакт) объектов исполнителя и стального газопровода ГРО i-го диапазона диаметров (полиэтиленового газопровода ГРО k-го диапазона диаметров), и проведением пуска газа"]
[null,null,null,null,0]
[null,null,"158 мм и менее Стальные газопроводы ","руб.",5762.71]
[null,null,"159 - 218 мм Стальные газопроводы ","руб.",12751.66]
[null,null,"219 - 272 мм Стальные газопроводы ","руб.",15408.51]
[null,null,"273 - 324 мм Стальные газопроводы ","руб.",17202.11]
[null,null,"109 мм и менее Полиэтиленовые газопроводы ","руб.",4813.9799999999996]
[null,null,"110 - 159 мм Полиэтиленовые газопроводы ","руб.",6052.6]
[null,null,"160 - 224 мм Полиэтиленовые газопроводы ","руб.",7876.12]
[null,null,"225-314 мм Полиэтиленовые газопроводы ","руб.",11286.96]

{"sheet":"Теплоэнерго","index":8,"n_rows":46,"n_cols":5,"rows_kept":46,"cut":false,"hidden":false,"merged":[[0,0,0,4],[1,1,1,2],[6,2,6,4],[2,1,2,2]]}
["Стандартизированные тарифные ставки, применяемые для расчета величины платы \nза технологическое присоединение газоиспользующего оборудования к сетям газораспределения МУП «Теплоэнерго», на 2018 год"]
[]
["№ п/п ","Наименование стандартизированной тарифной ставки",null,"Единица измерения","Величина стандартизированной тарифной ставки                 (без учета НДС)"]
[1,2,3,4,5]
[1,"C1","Стандартизированная тарифная ставка на покрытие расходов ГРО, связанных с разработкой проектной документации для случаев, когда протяженность строящейся (реконструируемой) сети газораспределения, измеряемая по прямой линии от границы земельного участка до сети газораспределения ГРО, составляет более 150 метров","руб.",45678.76]
[2,"C2","Стандартизированная тарифная ставка на покрытие расходов ГРО, связанных с разработкой проектной документации для случаев, когда протяженность строящейся (реконструируемой) сети газораспределения, измеряемая по прямой линии от границы земельного участка до сети газораспределения ГРО, составляет 150 метров и менее","руб./куб. м в час",640.58000000000004]
[3,"C3ij","Стандартизированная тарифная ставка на покрытие расходов ГРО, связанных со строительством (реконструкцией) стального газопровода i-го диапазона диаметров и j-го типа прокладки для случаев, когда протяженность строящейся (реконструируемой) сети газораспределения, измеряемая по прямой линии от границы земельного участка до сети газораспределения ГРО, составляет более 150 метров (в ценах  2001 года)"]
[null,null,null,null,0]
[null,null,"158 мм и менее Стальные газопроводы, наземная (надземная) прокладка","руб./км",142363.93]
[null,null,"159 - 218 мм Стальные газопроводы, наземная (надземная) прокладка","руб./км",377963.98]
[null,null,"219 - 272 мм Стальные газопроводы, наземная (надземная) прокладка","руб./км",563862.14]
[null,null,"273 - 324 мм Стальные газопроводы (надземная) прокладка","руб./км",638563.76]
[null,null,"158 мм и менее Стальные газопроводы, подземная  прокладка","руб./км",187960]
[null,null," 159 - 218 мм Стальные газопроводы, подземная прокладка","руб./км",363868.85]
[null,null,"219 - 272 мм Стальные газопроводы, подземная прокладка","руб./км",477539.08]
[null,null,"273 - 324 мм Стальные газопроводы, подземная прокладка","руб./км",778865.79]
[4,"C4k","Стандартизированная тарифная ставка на покрытие расходов ГРО, связанных со строительством (реконструкцией) полиэтиленового газопровода k-го диапазона диаметров (в ценах  2001 года)"]
[null,null,"109 мм и менее,  полиэтиленовый газопровод","руб./км",120010]
[null,null,"110 - 159 мм, полиэтиленовый газопровод","руб./км",177286.9]
[null,null,"160 - 224 мм,  полиэтиленовый газопровод","руб./км",336664.46]
[null,null,"225 - 314 мм,  полиэтиленовый газопровод","руб./км",435797.73]
[5,"C5","Стандартизированная тарифная ставка на покрытие расходов ГРО, связанных со строительством (реконструкцией) газопроводов всех диаметров, материалов труб и типов прокладки для случаев, когда протяженность строящейся (реконструируемой) сети газораспределения, измеряемая по прямой линии от границы земельного участка до сети газораспределения ГРО, составляет 150 метров и менее (в ценах 2001 года)","руб./куб. м в час",471.02]
[6,"C6n","Стандартизированная тарифная ставка на покрытие расходов ГРО, связанных со строительством (реконструкцией) газорегуляторных пунктов n-го диапазона максимального часового расхода газа (в ценах  2001 года)"]
[null,null,null,null,0]
[null,null,"до 40 куб. метров в час","руб./куб. м в час",529.77]
[null,null,"40 - 99 куб. метров в час","руб./куб. м в час",211.91]
[null,null,"100 - 999 куб.метров в час","руб./куб. м в час",76.63]
[null,null,"400 - 999 куб. метров в час","руб./куб. м в час",30.65]
[null,null,"1000 - 1999 куб. метров в час","руб./куб. м в час",28.68]
[null,null,"2000 - 2999 куб. метров в час","руб./куб. м в час",24.62]
[null,null,"3000 - 3999 куб. метров в час","руб./куб. м в час",20.11]
[null,null,"4000 - 4999 куб. метров в час","руб./куб. м в час",10.63]
[null,null,"5000 - 9999 куб. метров в час","руб./куб. м в час",5.31]
[null,null,"10000 - 19999 куб. метров в час","руб./куб. м в час",5.22]
[null,null,"20000 - 29999 куб. метров в час","руб./куб. м в час",3.47]
[7,"C7","Стандартизированная тарифная ставка на покрытие расходов ГРО, связанных со строительством (реконструкцией) станций катодной защиты (в ценах 2001 года)","руб./куб. м в час",466.49]
[8,"С8ik","Стандартизированная тарифная ставка на покрытие расходов ГРО, связанных с проверкой выполнения Заявителем технических условий и осуществлением фактического подключения  (технологического присоединения) объектов капитального строительства Заявителя к сети газораспределения посредством осуществления комплекса технических мероприятий, обеспечивающих физическое соединение (контакт) объектов исполнителя и стального газопровода ГРО i-го диапазона диаметров (полиэтиленового газопровода ГРО k-го диапазона диаметров), и проведением пуска газа"]
[null,null,null,null,0]
[null,null,"158 мм и менее Стальные газопроводы ","руб.",5762.71]
[null,null,"159 - 218 мм Стальные газопроводы ","руб.",12751.66]
[null,null,"219 - 272 мм Стальные газопроводы ","руб.",15408.51]
[null,null,"273 - 324 мм Стальные газопроводы ","руб.",17202.11]
[null,null,"109 мм и менее Полиэтиленовые газопроводы ","руб.",4813.9799999999996]
[null,null,"110 - 159 мм Полиэтиленовые газопроводы ","руб.",6052.6]
[null,null,"160 - 224 мм Полиэтиленовые газопроводы ","руб.",7876.12]
[null,null,"225-314 мм Полиэтиленовые газопроводы ","руб.",11286.96]

{"sheet":"Озерскгаз","index":9,"n_rows":46,"n_cols":5,"rows_kept":46,"cut":false,"hidden":false,"merged":[[1,1,1,2],[6,2,6,3],[0,0,0,4],[2,1,2,2]]}
["Стандартизированные тарифные ставки, применяемые для расчета величины платы \nза технологическое присоединение газоиспользующего оборудования к сетям газораспределения ООО «Озерскгаз», на 2018 год \n"]
[]
["№ п/п ","Наименование стандартизированной тарифной ставки",null,"Единица измерения","Величина стандартизированной тарифной ставки                 (без учета НДС)"]
[1,2,3,4,5]
[1,"C1","Стандартизированная тарифная ставка на покрытие расходов ГРО, связанных с разработкой проектной документации для случаев, когда протяженность строящейся (реконструируемой) сети газораспределения, измеряемая по прямой линии от границы земельного участка до сети газораспределения ГРО, составляет более 150 метров","руб.",45678.76]
[2,"C2","Стандартизированная тарифная ставка на покрытие расходов ГРО, связанных с разработкой проектной документации для случаев, когда протяженность строящейся (реконструируемой) сети газораспределения, измеряемая по прямой линии от границы земельного участка до сети газораспределения ГРО, составляет 150 метров и менее","руб./куб. м в час",640.58000000000004]
[3,"C3ij","Стандартизированная тарифная ставка на покрытие расходов ГРО, связанных со строительством (реконструкцией) стального газопровода i-го диапазона диаметров и j-го типа прокладки для случаев, когда протяженность строящейся (реконструируемой) сети газораспределения, измеряемая по прямой линии от границы земельного участка до сети газораспределения ГРО, составляет более 150 метров (в ценах  2001 года)"]
[null,null,null,null,0]
[null,null,"158 мм и менее Стальные газопроводы, наземная (надземная) прокладка","руб./км",142363.93]
[null,null,"159 - 218 мм Стальные газопроводы, наземная (надземная) прокладка","руб./км",377963.98]
[null,null,"219 - 272 мм Стальные газопроводы, наземная (надземная) прокладка","руб./км",563862.14]
[null,null,"273 - 324 мм Стальные газопроводы (надземная) прокладка","руб./км",638563.76]
[null,null,"158 мм и менее Стальные газопроводы, подземная  прокладка","руб./км",187960]
[null,null," 159 - 218 мм Стальные газопроводы, подземная прокладка","руб./км",363868.85]
[null,null,"219 - 272 мм Стальные газопроводы, подземная прокладка","руб./км",477539.08]
[null,null,"273 - 324 мм Стальные газопроводы, подземная прокладка","руб./км",778865.79]
[4,"C4k","Стандартизированная тарифная ставка на покрытие расходов ГРО, связанных со строительством (реконструкцией) полиэтиленового газопровода k-го диапазона диаметров (в ценах  2001 года)"]
[null,null,"109 мм и менее,  полиэтиленовый газопровод","руб./км",120010]
[null,null,"110 - 159 мм, полиэтиленовый газопровод","руб./км",177286.9]
[null,null,"160 - 224 мм,  полиэтиленовый газопровод","руб./км",336664.46]
[null,null,"225 - 314 мм,  полиэтиленовый газопровод","руб./км",435797.73]
[5,"C5","Стандартизированная тарифная ставка на покрытие расходов ГРО, связанных со строительством (реконструкцией) газопроводов всех диаметров, материалов труб и типов прокладки для случаев, когда протяженность строящейся (реконструируемой) сети газораспределения, измеряемая по прямой линии от границы земельного участка до сети газораспределения ГРО, составляет 150 метров и менее (в ценах  2001 года)","руб./куб. м в час",471.02]
[6,"C6n","Стандартизированная тарифная ставка на покрытие расходов ГРО, связанных со строительством (реконструкцией) газорегуляторных пунктов n-го диапазона максимального часового расхода газа (в ценах 2001 года)"]
[]
[null,null,"до 40 куб. метров в час","руб./куб. м в час",529.77]
[null,null,"40 - 99 куб. метров в час","руб./куб. м в час",211.91]
[null,null,"100 - 999 куб.метров в час","руб./куб. м в час",76.63]
[null,null,"400 - 999 куб. метров в час","руб./куб. м в час",30.65]
[null,null,"1000 - 1999 куб. метров в час","руб./куб. м в час",28.68]
[null,null,"2000 - 2999 куб. метров в час","руб./куб. м в час",24.62]
[null,null,"3000 - 3999 куб. метров в час","руб./куб. м в час",20.11]
[null,null,"4000 - 4999 куб. метров в час","руб./куб. м в час",10.63]
[null,null,"5000 - 9999 куб. метров в час","руб./куб. м в час",5.31]
[null,null,"10000 - 19999 куб. метров в час","руб./куб. м в час",5.22]
[null,null,"20000 - 29999 куб. метров в час","руб./куб. м в час",3.47]
[7,"C7","Стандартизированная тарифная ставка на покрытие расходов ГРО, связанных со строительством (реконструкцией) станций катодной защиты (в ценах 2001 года)","руб./куб. м в час",466.49]
[8,"С8ik","Стандартизированная тарифная ставка на покрытие расходов ГРО, связанных с проверкой выполнения Заявителем технических условий и осуществлением фактического подключения  (технологического присоединения) объектов капитального строительства Заявителя к сети газораспределения посредством осуществления комплекса технических мероприятий, обеспечивающих физическое соединение (контакт) объектов исполнителя и стального газопровода ГРО i-го диапазона диаметров (полиэтиленового газопровода ГРО k-го диапазона диаметров), и проведением пуска газа"]
[null,null,null,null,0]
[null,null,"158 мм и менее Стальные газопроводы ","руб.",5762.71]
[null,null,"159 - 218 мм Стальные газопроводы ","руб.",12751.66]
[null,null,"219 - 272 мм Стальные газопроводы ","руб.",15408.51]
[null,null,"273 - 324 мм Стальные газопроводы ","руб.",17202.11]
[null,null,"109 мм и менее Полиэтиленовые газопроводы ","руб.",4813.9799999999996]
[null,null,"110 - 159 мм Полиэтиленовые газопроводы ","руб.",6052.6]
[null,null,"160 - 224 мм Полиэтиленовые газопроводы ","руб.",7876.12]
[null,null,"225-314 мм Полиэтиленовые газопроводы ","руб.",11286.96]

{"sheet":"Магнитогорскгазстрой","index":10,"n_rows":46,"n_cols":5,"rows_kept":46,"cut":false,"hidden":false,"merged":[[16,2,16,3],[2,1,2,2],[0,0,0,4],[1,0,1,3],[6,2,6,3]]}
["Стандартизированные тарифные ставки, применяемые для расчета величины платы \nза технологическое присоединение газоиспользующего оборудования к сетям газораспределения ООО «Магнитогорскгазстрой», на 2018 год "]
[]
["№ п/п ","Наименование стандартизированной тарифной ставки",null,"Единица измерения","Величина стандартизированной тарифной ставки                 (без учета НДС)"]
[1,2,3,4,5]
[1,"C1","Стандартизированная тарифная ставка на покрытие расходов ГРО, связанных с разработкой проектной документации для случаев, когда протяженность строящейся (реконструируемой) сети газораспределения, измеряемая по прямой линии от границы земельного участка до сети газораспределения ГРО, составляет более 150 метров","руб.",112879.24]
[2,"C2","Стандартизированная тарифная ставка на покрытие расходов ГРО, связанных с разработкой проектной документации для случаев, когда протяженность строящейся (реконструируемой) сети газораспределения, измеряемая по прямой линии от границы земельного участка до сети газораспределения ГРО, составляет 150 метров и менее","руб./куб. м в час",2271.9499999999998]
[3,"C3ij","Стандартизированная тарифная ставка на покрытие расходов ГРО, связанных со строительством (реконструкцией) стального газопровода i-го диапазона диаметров и j-го типа прокладки для случаев, когда протяженность строящейся (реконструируемой) сети газораспределения, измеряемая по прямой линии от границы земельного участка до сети газораспределения ГРО, составляет более 150 метров (в ценах  2001 года)"]
[null,null,null,null,0]
[null,null,"158 мм и менее Стальные газопроводы, наземная (надземная) прокладка","руб./км",174542.71]
[null,null,"159 - 218 мм Стальные газопроводы, наземная (надземная) прокладка","руб./км",377963.98]
[null,null,"219 - 272 мм Стальные газопроводы, наземная (надземная) прокладка","руб./км",563862.14]
[null,null,"273 - 324 мм Стальные газопроводы (надземная) прокладка","руб./км",638563.76]
[null,null,"158 мм и менее Стальные газопроводы, подземная  прокладка","руб./км",240862.99]
[null,null," 159 - 218 мм Стальные газопроводы, подземная прокладка","руб./км",363868.85]
[null,null,"219 - 272 мм Стальные газопроводы, подземная прокладка","руб./км",477539.08]
[null,null,"273 - 324 мм Стальные газопроводы, подземная прокладка","руб./км",778865.79]
[4,"C4k","Стандартизированная тарифная ставка на покрытие расходов ГРО, связанных со строительством (реконструкцией) полиэтиленового газопровода k-го диапазона диаметров (в ценах  2001 года)"]
[null,null,"109 мм и менее,  полиэтиленовый газопровод","руб./км",161963.95000000001]
[null,null,"110 - 159 мм, полиэтиленовый газопровод","руб./км",187289.79]
[null,null,"160 - 224 мм,  полиэтиленовый газопровод","руб./км",336664.46]
[null,null,"225 - 314 мм,  полиэтиленовый газопровод","руб./км",435797.73]
[5,"C5","Стандартизированная тарифная ставка на покрытие расходов ГРО, связанных со строительством (реконструкцией) газопроводов всех диаметров, материалов труб и типов прокладки для случаев, когда протяженность строящейся (реконструируемой) сети газораспределения, измеряемая по прямой линии от границы земельного участка до сети газораспределения ГРО, составляет 150 метров и менее (в ценах  2001 года)","руб./куб. м в час",1016.31]
[6,"C6n","Стандартизированная тарифная ставка на покрытие расходов ГРО, связанных со строительством (реконструкцией) газорегуляторных пунктов n-го диапазона максимального часового расхода газа (в ценах  2001 года)"]
[null,null,null,null,0]
[null,null,"до 40 куб. метров в час","руб./куб. м в час",529.77]
[null,null,"40 - 99 куб. метров в час","руб./куб. м в час",211.91]
[null,null,"100 - 999 куб.метров в час","руб./куб. м в час",80.569999999999993]
[null,null,"400 - 999 куб. метров в час","руб./куб. м в час",30.65]
[null,null,"1000 - 1999 куб. метров в час","руб./куб. м в час",28.68]
[null,null,"2000 - 2999 куб. метров в час","руб./куб. м в час",24.62]
[null,null,"3000 - 3999 куб. метров в час","руб./куб. м в час",20.100000000000001]
[null,null,"4000 - 4999 куб. метров в час","руб./куб. м в час",10.63]
[null,null,"5000 - 9999 куб. метров в час","руб./куб. м в час",5.31]
[null,null,"10000 - 19999 куб. метров в час","руб./куб. м в час",5.21]
[null,null,"20000 - 29999 куб. метров в час","руб./куб. м в час",3.47]
[7,"C7","Стандартизированная тарифная ставка на покрытие расходов ГРО, связанных со строительством (реконструкцией) станций катодной защиты (в ценах 2001 года)","руб./куб. м в час",466.5]
[8,"С8ik","Стандартизированная тарифная ставка на покрытие расходов ГРО, связанных с проверкой выполнения Заявителем технических условий и осуществлением фактического подключения  (технологического присоединения) объектов капитального строительства Заявителя к сети газораспределения посредством осуществления комплекса технических мероприятий, обеспечивающих физическое соединение (контакт) объектов исполнителя и стального газопровода ГРО i-го диапазона диаметров (полиэтиленового газопровода ГРО k-го диапазона диаметров), и проведением пуска газа"]
[null,null,0,null,0]
[null,null,"158 мм и менее Стальные газопроводы ","руб.",5762.71]
[null,null,"159 - 218 мм Стальные газопроводы ","руб.",12751.66]
[null,null,"219 - 272 мм Стальные газопроводы ","руб.",15408.51]
[null,null,"273 - 324 мм Стальные газопроводы ","руб.",17202.11]
[null,null,"109 мм и менее Полиэтиленовые газопроводы ","руб.",4813.9799999999996]
[null,null,"110 - 159 мм Полиэтиленовые газопроводы ","руб.",6052.6]
[null,null,"160 - 224 мм Полиэтиленовые газопроводы ","руб.",7876.12]
[null,null,"225-314 мм Полиэтиленовые газопроводы ","руб.",11286.96]

{"sheet":"Златоустгазстрой","index":11,"n_rows":46,"n_cols":5,"rows_kept":46,"cut":false,"hidden":false,"merged":[[1,0,1,4],[2,0,2,3],[3,1,3,2]]}
[]
["Стандартизированные тарифные ставки, применяемые для расчета величины платы \nза технологическое присоединение газоиспользующего оборудования к сетям газораспределения ООО «Златоустгазстрой», \nна 2018 год"]
[]
["№ п/п ","Наименование стандартизированной тарифной ставки",null,"Единица измерения","Величина стандартизированной тарифной ставки                 (без учета НДС)"]
[1,"C1","Стандартизированная тарифная ставка на покрытие расходов ГРО, связанных с разработкой проектной документации для случаев, когда протяженность строящейся (реконструируемой) сети газораспределения, измеряемая по прямой линии от границы земельного участка до сети газораспределения ГРО, составляет более 150 метров","руб.",92178.27]
[2,"C2","Стандартизированная тарифная ставка на покрытие расходов ГРО, связанных с разработкой проектной документации для случаев, когда протяженность строящейся (реконструируемой) сети газораспределения, измеряемая по прямой линии от границы земельного участка до сети газораспределения ГРО, составляет 150 метров и менее","руб./куб. м в час",1618.73]
[3,"C3ij","Стандартизированная тарифная ставка на покрытие расходов ГРО, связанных со строительством (реконструкцией) стального газопровода i-го диапазона диаметров и j-го типа прокладки для случаев, когда протяженность строящейся (реконструируемой) сети газораспределения, измеряемая по прямой линии от границы земельного участка до сети газораспределения ГРО, составляет более 150 метров (в ценах 2001 года)"]
[null,null,null,null,0]
[null,null,"158 мм и менее Стальные газопроводы, наземная (надземная) прокладка","руб./км",151672.07999999999]
[null,null,"159 - 218 мм Стальные газопроводы, наземная (надземная) прокладка","руб./км",318773.67]
[null,null,"219 - 272 мм Стальные газопроводы, наземная (надземная) прокладка","руб./км",390803.77]
[null,null,"273 - 324 мм Стальные газопроводы (надземная) прокладка","руб./км",437856.91]
[null,null,"158 мм и менее Стальные газопроводы, подземная  прокладка","руб./км",223983.33]
[null,null," 159 - 218 мм Стальные газопроводы, подземная прокладка","руб./км",336927.35]
[null,null,"219 - 272 мм Стальные газопроводы, подземная прокладка","руб./км",427075.11]
[null,null,"273 - 324 мм Стальные газопроводы, подземная прокладка","руб./км",631642.98]
[4,"C4k","Стандартизированная тарифная ставка на покрытие расходов ГРО, связанных со строительством (реконструкцией) полиэтиленового газопровода k-го диапазона диаметров (в ценах  2001 года)"]
[null,null,"109 мм и менее,  полиэтиленовый газопровод","руб./км",150574.87]
[null,null,"110 - 159 мм, полиэтиленовый газопровод","руб./км",176153.57]
[null,null,"160 - 224 мм,  полиэтиленовый газопровод","руб./км",319106.26]
[null,null,"225 - 314 мм,  полиэтиленовый газопровод","руб./км",383310.17]
[5,"C5","Стандартизированная тарифная ставка на покрытие расходов ГРО, связанных со строительством (реконструкцией) газопроводов всех диаметров, материалов труб и типов прокладки для случаев, когда протяженность строящейся (реконструируемой) сети газораспределения, измеряемая по прямой линии от границы земельного участка до сети газораспределения ГРО, составляет 150 метров и менее (в ценах  2001 года)","руб./куб. м в час",617.16999999999996]
[6,"C6n","Стандартизированная тарифная ставка на покрытие расходов ГРО, связанных со строительством (реконструкцией) газорегуляторных пунктов n-го диапазона максимального часового расхода газа (в ценах  2001 года)"]
[null,null,null,null,0]
[null,null,"до 40 куб. метров в час","руб./куб. м в час",529.64]
[null,null,"40 - 99 куб. метров в час","руб./куб. м в час",211.86]
[null,null,"100 - 999 куб.метров в час","руб./куб. м в час",76.61]
[null,null,"400 - 999 куб. метров в час","руб./куб. м в час",30.64]
[null,null,"1000 - 1999 куб. метров в час","руб./куб. м в час",28.67]
[null,null,"2000 - 2999 куб. метров в час","руб./куб. м в час",24.61]
[null,null,"3000 - 3999 куб. метров в час","руб./куб. м в час",20.100000000000001]
[null,null,"4000 - 4999 куб. метров в час","руб./куб. м в час",10.62]
[null,null,"5000 - 9999 куб. метров в час","руб./куб. м в час",5.31]
[null,null,"10000 - 19999 куб. метров в час","руб./куб. м в час",5.21]
[null,null,"20000 - 29999 куб. метров в час","руб./куб. м в час",3.47]
[7,"C7","Стандартизированная тарифная ставка на покрытие расходов ГРО, связанных со строительством (реконструкцией) станций катодной защиты (в ценах 2001 года)","руб./куб. м в час",466.38]
[8,"С8ik","Стандартизированная тарифная ставка на покрытие расходов ГРО, связанных с проверкой выполнения Заявителем технических условий и осуществлением фактического подключения  (технологического присоединения) объектов капитального строительства Заявителя к сети газораспределения посредством осуществления комплекса технических мероприятий, обеспечивающих физическое соединение (контакт) объектов исполнителя и стального газопровода ГРО i-го диапазона диаметров (полиэтиленового газопровода ГРО k-го диапазона диаметров), и проведением пуска газа"]
[null,null,0,null,0]
[null,null,"158 мм и менее Стальные газопроводы ","руб.",5762.71]
[null,null,"159 - 218 мм Стальные газопроводы ","руб.",12751.66]
[null,null,"219 - 272 мм Стальные газопроводы ","руб.",15408.51]
[null,null,"273 - 324 мм Стальные газопроводы ","руб.",17202.11]
[null,null,"109 мм и менее Полиэтиленовые газопроводы ","руб.",4813.9799999999996]
[null,null,"110 - 159 мм Полиэтиленовые газопроводы ","руб.",6052.6]
[null,null,"160 - 224 мм Полиэтиленовые газопроводы ","руб.",7876.12]
[null,null,"225-314 мм Полиэтиленовые газопроводы ","руб.",11286.96]

{"sheet":"Классик","index":12,"n_rows":46,"n_cols":5,"rows_kept":46,"cut":false,"hidden":false,"merged":[[1,0,1,4],[2,0,2,3],[3,1,3,2]]}
[]
["Стандартизированные тарифные ставки, применяемые для расчета величины платы \nза технологическое присоединение газоиспользующего оборудования к сетям газораспределения ООО «Классик», на 2017 год \n"]
[]
["№ п/п ","Наименование стандартизированной тарифной ставки",null,"Единица измерения","Величина стандартизированной тарифной ставки                 (НДС не предусмотрен)"]
[1,"C1","Стандартизированная тарифная ставка на покрытие расходов ГРО, связанных с разработкой проектной документации для случаев, когда протяженность строящейся (реконструируемой) сети газораспределения, измеряемая по прямой линии от границы земельного участка до сети газораспределения ГРО, составляет более 150 метров","руб.",82664.570000000007]
[2,"C2","Стандартизированная тарифная ставка на покрытие расходов ГРО, связанных с разработкой проектной документации для случаев, когда протяженность строящейся (реконструируемой) сети газораспределения, измеряемая по прямой линии от границы земельного участка до сети газораспределения ГРО, составляет 150 метров и менее","руб./куб. м в час",508.16]
[3,"C3ij","Стандартизированная тарифная ставка на покрытие расходов ГРО, связанных со строительством (реконструкцией) стального газопровода i-го диапазона диаметров и j-го типа прокладки для случаев, когда протяженность строящейся (реконструируемой) сети газораспределения, измеряемая по прямой линии от границы земельного участка до сети газораспределения ГРО, составляет более 150 метров (в ценах 2001 года)"]
[null,null,null,null,0]
[null,null,"158 мм и менее Стальные газопроводы, наземная (надземная) прокладка","руб./км",153282.04999999999]
[null,null,"159 - 218 мм Стальные газопроводы, наземная (надземная) прокладка","руб./км",377963.98]
[null,null,"219 - 272 мм Стальные газопроводы, наземная (надземная) прокладка","руб./км",563862.14]
[null,null,"273 - 324 мм Стальные газопроводы (надземная) прокладка","руб./км",638563.76]
[null,null,"158 мм и менее Стальные газопроводы, подземная  прокладка","руб./км",240862.99]
[null,null," 159 - 218 мм Стальные газопроводы, подземная прокладка","руб./км",363868.85]
[null,null,"219 - 272 мм Стальные газопроводы, подземная прокладка","руб./км",477539.08]
[null,null,"273 - 324 мм Стальные газопроводы, подземная прокладка","руб./км",778865.79]
[4,"C4k","Стандартизированная тарифная ставка на покрытие расходов ГРО, связанных со строительством (реконструкцией) полиэтиленового газопровода k-го диапазона диаметров (в ценах  2001 года)"]
[null,null,"109 мм и менее,  полиэтиленовый газопровод","руб./км",161963.95000000001]
[null,null,"110 - 159 мм, полиэтиленовый газопровод","руб./км",177286.9]
[null,null,"160 - 224 мм,  полиэтиленовый газопровод","руб./км",336664.46]
[null,null,"225 - 314 мм,  полиэтиленовый газопровод","руб./км",435797.73]
[5,"C5","Стандартизированная тарифная ставка на покрытие расходов ГРО, связанных со строительством (реконструкцией) газопроводов всех диаметров, материалов труб и типов прокладки для случаев, когда протяженность строящейся (реконструируемой) сети газораспределения, измеряемая по прямой линии от границы земельного участка до сети газораспределения ГРО, составляет 150 метров и менее (в ценах  2001 года)","руб./куб. м в час",214.24]
[6,"C6n","Стандартизированная тарифная ставка на покрытие расходов ГРО, связанных со строительством (реконструкцией) газорегуляторных пунктов n-го диапазона максимального часового расхода газа (в ценах  2001 года)"]
[null,null,null,null,0]
[null,null,"до 40 куб. метров в час","руб./куб. м в час",556.42999999999995]
[null,null,"40 - 99 куб. метров в час","руб./куб. м в час",219.34]
[null,null,"100 - 999 куб.метров в час","руб./куб. м в час",142.80000000000001]
[null,null,"400 - 999 куб. метров в час","руб./куб. м в час",30.64]
[null,null,"1000 - 1999 куб. метров в час","руб./куб. м в час",28.67]
[null,null,"2000 - 2999 куб. метров в час","руб./куб. м в час",24.6]
[null,null,"3000 - 3999 куб. метров в час","руб./куб. м в час",20.100000000000001]
[null,null,"4000 - 4999 куб. метров в час","руб./куб. м в час",10.62]
[null,null,"5000 - 9999 куб. метров в час","руб./куб. м в час",5.31]
[null,null,"10000 - 19999 куб. метров в час","руб./куб. м в час",5.21]
[null,null,"20000 - 29999 куб. метров в час","руб./куб. м в час",3.47]
[7,"C7","Стандартизированная тарифная ставка на покрытие расходов ГРО, связанных со строительством (реконструкцией) станций катодной защиты (в ценах 2001 года)","руб./куб. м в час",466.5]
[8,"С8ik","Стандартизированная тарифная ставка на покрытие расходов ГРО, связанных с проверкой выполнения Заявителем технических условий и осуществлением фактического подключения  (технологического присоединения) объектов капитального строительства Заявителя к сети газораспределения посредством осуществления комплекса технических мероприятий, обеспечивающих физическое соединение (контакт) объектов исполнителя и стального газопровода ГРО i-го диапазона диаметров (полиэтиленового газопровода ГРО k-го диапазона диаметров), и проведением пуска газа"]
[null,null,null,null,0]
[null,null,"158 мм и менее Стальные газопроводы ","руб.",5762.71]
[null,null,"159 - 218 мм Стальные газопроводы ","руб.",12751.66]
[null,null,"219 - 272 мм Стальные газопроводы ","руб.",15408.51]
[null,null,"273 - 324 мм Стальные газопроводы ","руб.",17202.11]
[null,null,"109 мм и менее Полиэтиленовые газопроводы ","руб.",4813.9799999999996]
[null,null,"110 - 159 мм Полиэтиленовые газопроводы ","руб.",6052.6]
[null,null,"160 - 224 мм Полиэтиленовые газопроводы ","руб.",7876.12]
[null,null,"225-314 мм Полиэтиленовые газопроводы ","руб.",11286.96]

{"sheet":"МАГЭнерго","index":13,"n_rows":46,"n_cols":5,"rows_kept":46,"cut":false,"hidden":false,"merged":[[2,1,2,2],[0,0,0,4],[1,0,1,3],[6,2,6,3]]}
["Стандартизированные тарифные ставки, применяемые для расчета величины платы \nза технологическое присоединение газоиспользующего оборудования к сетям газораспределения ООО «МАГ-Энерго», на 2018 год\n"]
[]
["№ п/п ","Наименование стандартизированной тарифной ставки",null,"Единица измерения","Величина стандартизированной тарифной ставки                 (без учета НДС)"]
[1,2,3,4,5]
[1,"C1","Стандартизированная тарифная ставка на покрытие расходов ГРО, связанных с разработкой проектной документации для случаев, когда протяженность строящейся (реконструируемой) сети газораспределения, измеряемая по прямой линии от границы земельного участка до сети газораспределения ГРО, составляет более 150 метров","руб.",35943.660000000003]
[2,"C2","Стандартизированная тарифная ставка на покрытие расходов ГРО, связанных с разработкой проектной документации для случаев, когда протяженность строящейся (реконструируемой) сети газораспределения, измеряемая по прямой линии от границы земельного участка до сети газораспределения ГРО, составляет 150 метров и менее","руб./куб. м в час",522.71]
[3,"C3ij","Стандартизированная тарифная ставка на покрытие расходов ГРО, связанных со строительством (реконструкцией) стального газопровода i-го диапазона диаметров и j-го типа прокладки для случаев, когда протяженность строящейся (реконструируемой) сети газораспределения, измеряемая по прямой линии от границы земельного участка до сети газораспределения ГРО, составляет более 150 метров (в ценах  2001 года)"]
[null,null,null,null,0]
[null,null,"158 мм и менее Стальные газопроводы, наземная (надземная) прокладка","руб./км",116168.04]
[null,null,"159 - 218 мм Стальные газопроводы, наземная (надземная) прокладка","руб./км",308416.14]
[null,null,"219 - 272 мм Стальные газопроводы, наземная (надземная) прокладка","руб./км",460107.83]
[null,null,"273 - 324 мм Стальные газопроводы (надземная) прокладка","руб./км",521063.86]
[null,null,"158 мм и менее Стальные газопроводы, подземная  прокладка","руб./км",187960]
[null,null," 159 - 218 мм Стальные газопроводы, подземная прокладка","руб./км",296914.61]
[null,null,"219 - 272 мм Стальные газопроводы, подземная прокладка","руб./км",389668.77]
[null,null,"273 - 324 мм Стальные газопроводы, подземная прокладка","руб./км",635549.4]
[4,"C4k","Стандартизированная тарифная ставка на покрытие расходов ГРО, связанных со строительством (реконструкцией) полиэтиленового газопровода k-го диапазона диаметров (в ценах  2001 года)"]
[null,null,"109 мм и менее,  полиэтиленовый газопровод","руб./км",120010]
[null,null,"110 - 159 мм, полиэтиленовый газопровод","руб./км",177286.9]
[null,null,"160 - 224 мм,  полиэтиленовый газопровод","руб./км",274716]
[null,null,"225 - 314 мм,  полиэтиленовый газопровод","руб./км",355608.1]
[5,"C5","Стандартизированная тарифная ставка на покрытие расходов ГРО, связанных со строительством (реконструкцией) газопроводов всех диаметров, материалов труб и типов прокладки для случаев, когда протяженность строящейся (реконструируемой) сети газораспределения, измеряемая по прямой линии от границы земельного участка до сети газораспределения ГРО, составляет 150 метров и менее (в ценах  2001 года)","руб./куб. м в час",384.35]
[6,"C6n","Стандартизированная тарифная ставка на покрытие расходов ГРО, связанных со строительством (реконструкцией) газорегуляторных пунктов n-го диапазона максимального часового расхода газа (в ценах  2001 года)"]
[null,null,null,null,0]
[null,null,"до 40 куб. метров в час","руб./куб. м в час",432.29]
[null,null,"40 - 99 куб. метров в час","руб./куб. м в час",172.92]
[null,null,"100 - 999 куб.метров в час","руб./куб. м в час",62.54]
[null,null,"400 - 999 куб. метров в час","руб./куб. м в час",25.01]
[null,null,"1000 - 1999 куб. метров в час","руб./куб. м в час",23.4]
[null,null,"2000 - 2999 куб. метров в час","руб./куб. м в час",20.09]
[null,null,"3000 - 3999 куб. метров в час","руб./куб. м в час",16.41]
[null,null,"4000 - 4999 куб. метров в час","руб./куб. м в час",8.67]
[null,null,"5000 - 9999 куб. метров в час","руб./куб. м в час",4.34]
[null,null,"10000 - 19999 куб. метров в час","руб./куб. м в час",4.25]
[null,null,"20000 - 29999 куб. метров в час","руб./куб. м в час",2.84]
[7,"C7","Стандартизированная тарифная ставка на покрытие расходов ГРО, связанных со строительством (реконструкцией) станций катодной защиты (в ценах 2001 года)","руб./куб. м в час",380.66]
[8,"С8ik","Стандартизированная тарифная ставка на покрытие расходов ГРО, связанных с проверкой выполнения Заявителем технических условий и осуществлением фактического подключения  (технологического присоединения) объектов капитального строительства Заявителя к сети газораспределения посредством осуществления комплекса технических мероприятий, обеспечивающих физическое соединение (контакт) объектов исполнителя и стального газопровода ГРО i-го диапазона диаметров (полиэтиленового газопровода ГРО k-го диапазона диаметров), и проведением пуска газа"]
[null,null,null,null,0]
[null,null,"158 мм и менее Стальные газопроводы ","руб.",5762.71]
[null,null,"159 - 218 мм Стальные газопроводы ","руб.",12751.66]
[null,null,"219 - 272 мм Стальные газопроводы ","руб.",15408.51]
[null,null,"273 - 324 мм Стальные газопроводы ","руб.",17202.11]
[null,null,"109 мм и менее Полиэтиленовые газопроводы ","руб.",4813.9799999999996]
[null,null,"110 - 159 мм Полиэтиленовые газопроводы ","руб.",6052.6]
[null,null,"160 - 224 мм Полиэтиленовые газопроводы ","руб.",7876.12]
[null,null,"225-314 мм Полиэтиленовые газопроводы ","руб.",11286.96]

{"sheet":"УКВЗ","index":14,"n_rows":45,"n_cols":5,"rows_kept":45,"cut":false,"hidden":false,"merged":[[0,0,0,4],[1,1,1,2],[4,2,4,3],[5,2,5,3]]}
["Стандартизированные тарифные ставки, применяемые для расчета величины платы \nза технологическое присоединение газоиспользующего оборудования к сетям газораспределения УКВЗ имени С.М. Кирова - филиал ФГУП «ГКНПЦ  имени М.В. Хруничева», на 2018 год\n"]
[]
["№ п/п ","Наименование стандартизированной тарифной ставки",null,"Единица измерения","Величина стандартизированной тарифной ставки                 (без учета НДС)"]
[1,"C1","Стандартизированная тарифная ставка на покрытие расходов ГРО, связанных с разработкой проектной документации для случаев, когда протяженность строящейся (реконструируемой) сети газораспределения, измеряемая по прямой линии от границы земельного участка до сети газораспределения ГРО, составляет более 150 метров","руб.",45678.76]
[2,"C2","Стандартизированная тарифная ставка на покрытие расходов ГРО, связанных с разработкой проектной документации для случаев, когда протяженность строящейся (реконструируемой) сети газораспределения, измеряемая по прямой линии от границы земельного участка до сети газораспределения ГРО, составляет 150 метров и менее","руб./куб. м в час",640.58000000000004]
[3,"C3ij","Стандартизированная тарифная ставка на покрытие расходов ГРО, связанных со строительством (реконструкцией) стального газопровода i-го диапазона диаметров и j-го типа прокладки для случаев, когда протяженность строящейся (реконструируемой) сети газораспределения, измеряемая по прямой линии от границы земельного участка до сети газораспределения ГРО, составляет более 150 метров (в ценах  2001 года)"]
[null,null,null,null,0]
[null,null,"158 мм и менее Стальные газопроводы, наземная (надземная) прокладка","руб./км",142363.93]
[null,null,"159 - 218 мм Стальные газопроводы, наземная (надземная) прокладка","руб./км",377963.98]
[null,null,"219 - 272 мм Стальные газопроводы, наземная (надземная) прокладка","руб./км",563862.14]
[null,null,"273 - 324 мм Стальные газопроводы (надземная) прокладка","руб./км",638563.76]
[null,null,"158 мм и менее Стальные газопроводы, подземная  прокладка","руб./км",187960]
[null,null," 159 - 218 мм Стальные газопроводы, подземная прокладка","руб./км",363868.85]
[null,null,"219 - 272 мм Стальные газопроводы, подземная прокладка","руб./км",477539.08]
[null,null,"273 - 324 мм Стальные газопроводы, подземная прокладка","руб./км",778865.79]
[4,"C4k","Стандартизированная тарифная ставка на покрытие расходов ГРО, связанных со строительством (реконструкцией) полиэтиленового газопровода k-го диапазона диаметров (в ценах  2001 года)"]
[null,null,"109 мм и менее,  полиэтиленовый газопровод","руб./км",120010]
[null,null,"110 - 159 мм, полиэтиленовый газопровод","руб./км",177286.9]
[null,null,"160 - 224 мм,  полиэтиленовый газопровод","руб./км",336664.46]
[null,null,"225 - 314 мм,  полиэтиленовый газопровод","руб./км",435797.73]
[5,"C5","Стандартизированная тарифная ставка на покрытие расходов ГРО, связанных со строительством (реконструкцией) газопроводов всех диаметров, материалов труб и типов прокладки для случаев, когда протяженность строящейся (реконструируемой) сети газораспределения, измеряемая по прямой линии от границы земельного участка до сети газораспределения ГРО, составляет 150 метров и менее (в ценах  2001 года)","руб./куб. м в час",471.02]
[6,"C6n","Стандартизированная тарифная ставка на покрытие расходов ГРО, связанных со строительством (реконструкцией) газорегуляторных пунктов n-го диапазона максимального часового расхода газа (в ценах  2001 года)"]
[null,null,null,null,0]
[null,null,"до 40 куб. метров в час","руб./куб. м в час",529.77]
[null,null,"40 - 99 куб. метров в час","руб./куб. м в час",211.91]
[null,null,"100 - 999 куб.метров в час","руб./куб. м в час",76.63]
[null,null,"400 - 999 куб. метров в час","руб./куб. м в час",30.65]
[null,null,"1000 - 1999 куб. метров в час","руб./куб. м в час",28.68]
[null,null,"2000 - 2999 куб. метров в час","руб./куб. м в час",24.62]
[null,null,"3000 - 3999 куб. метров в час","руб./куб. м в час",20.11]
[null,null,"4000 - 4999 куб. метров в час","руб./куб. м в час",10.63]
[null,null,"5000 - 9999 куб. метров в час","руб./куб. м в час",5.31]
[null,null,"10000 - 19999 куб. метров в час","руб./куб. м в час",5.22]
[null,null,"20000 - 29999 куб. метров в час","руб./куб. м в час",3.47]
[7,"C7","Стандартизированная тарифная ставка на покрытие расходов ГРО, связанных со строительством (реконструкцией) станций катодной защиты (в ценах 2001 года)","руб./куб. м в час",466.49]
[8,"С8ik","Стандартизированная тарифная ставка на покрытие расходов ГРО, связанных с проверкой выполнения Заявителем технических условий и осуществлением фактического подключения  (технологического присоединения) объектов капитального строительства Заявителя к сети газораспределения посредством осуществления комплекса технических мероприятий, обеспечивающих физическое соединение (контакт) объектов исполнителя и стального газопровода ГРО i-го диапазона диаметров (полиэтиленового газопровода ГРО k-го диапазона диаметров), и проведением пуска газа"]
[null,null,null,null,0]
[null,null,"158 мм и менее Стальные газопроводы ","руб.",5762.71]
[null,null,"159 - 218 мм Стальные газопроводы ","руб.",12751.66]
[null,null,"219 - 272 мм Стальные газопроводы ","руб.",15408.51]
[null,null,"273 - 324 мм Стальные газопроводы ","руб.",17202.11]
[null,null,"109 мм и менее Полиэтиленовые газопроводы ","руб.",4813.9799999999996]
[null,null,"110 - 159 мм Полиэтиленовые газопроводы ","руб.",6052.6]
[null,null,"160 - 224 мм Полиэтиленовые газопроводы ","руб.",7876.12]
[null,null,"225-314 мм Полиэтиленовые газопроводы ","руб.",11286.96]

{"sheet":"СтандартЛимит","index":15,"n_rows":45,"n_cols":5,"rows_kept":45,"cut":false,"hidden":false,"merged":[[15,2,15,3],[2,1,2,2],[1,0,1,4],[5,2,5,3]]}
[]
["Стандартизированные тарифные ставки, применяемые для расчета величины платы \nза технологическое присоединение газоиспользующего оборудования к сетям газораспределения ООО «СтандартЛимит», на 2018 год\n"]
["№ п/п ","Наименование стандартизированной тарифной ставки",null,"Единица измерения","Величина стандартизированной тарифной ставки                 (без учета НДС)"]
[1,"C1","Стандартизированная тарифная ставка на покрытие расходов ГРО, связанных с разработкой проектной документации для случаев, когда протяженность строящейся (реконструируемой) сети газораспределения, измеряемая по прямой линии от границы земельного участка до сети газораспределения ГРО, составляет более 150 метров","руб.",45678.76]
[2,"C2","Стандартизированная тарифная ставка на покрытие расходов ГРО, связанных с разработкой проектной документации для случаев, когда протяженность строящейся (реконструируемой) сети газораспределения, измеряемая по прямой линии от границы земельного участка до сети газораспределения ГРО, составляет 150 метров и менее","руб./куб. м в час",640.58000000000004]
[3,"C3ij","Стандартизированная тарифная ставка на покрытие расходов ГРО, связанных со строительством (реконструкцией) стального газопровода i-го диапазона диаметров и j-го типа прокладки для случаев, когда протяженность строящейся (реконструируемой) сети газораспределения, измеряемая по прямой линии от границы земельного участка до сети газораспределения ГРО, составляет более 150 метров (в ценах  2001 года)"]
[null,null,null,null,0]
[null,null,"158 мм и менее Стальные газопроводы, наземная (надземная) прокладка","руб./км",142363.93]
[null,null,"159 - 218 мм Стальные газопроводы, наземная (надземная) прокладка","руб./км",377963.98]
[null,null,"219 - 272 мм Стальные газопроводы, наземная (надземная) прокладка","руб./км",563862.14]
[null,null,"273 - 324 мм Стальные газопроводы (надземная) прокладка","руб./км",638563.76]
[null,null,"158 мм и менее Стальные газопроводы, подземная  прокладка","руб./км",187960]
[null,null," 159 - 218 мм Стальные газопроводы, подземная прокладка","руб./км",363868.85]
[null,null,"219 - 272 мм Стальные газопроводы, подземная прокладка","руб./км",477539.08]
[null,null,"273 - 324 мм Стальные газопроводы, подземная прокладка","руб./км",778865.79]
[4,"C4k","Стандартизированная тарифная ставка на покрытие расходов ГРО, связанных со строительством (реконструкцией) полиэтиленового газопровода k-го диапазона диаметров (в ценах 2001 года)"]
[null,null,"109 мм и менее,  полиэтиленовый газопровод","руб./км",120010]
[null,null,"110 - 159 мм, полиэтиленовый газопровод","руб./км",177286.9]
[null,null,"160 - 224 мм,  полиэтиленовый газопровод","руб./км",336664.46]
[null,null,"225 - 314 мм,  полиэтиленовый газопровод","руб./км",435797.73]
[5,"C5","Стандартизированная тарифная ставка на покрытие расходов ГРО, связанных со строительством (реконструкцией) газопроводов всех диаметров, материалов труб и типов прокладки для случаев, когда протяженность строящейся (реконструируемой) сети газораспределения, измеряемая по прямой линии от границы земельного участка до сети газораспределения ГРО, составляет 150 метров и менее (в ценах 2001 года)","руб./куб. м в час",471.02]
[6,"C6n","Стандартизированная тарифная ставка на покрытие расходов ГРО, связанных со строительством (реконструкцией) газорегуляторных пунктов n-го диапазона максимального часового расхода газа (в ценах  2001 года)"]
[null,null,null,null,0]
[null,null,"до 40 куб. метров в час","руб./куб. м в час",529.77]
[null,null,"40 - 99 куб. метров в час","руб./куб. м в час",211.91]
[null,null,"100-399  куб. метров в час","руб./куб. м в час",76.63]
[null,null,"400 - 999 куб. метров в час","руб./куб. м в час",30.65]
[null,null,"1000 - 1999 куб. метров в час","руб./куб. м в час",28.68]
[null,null,"2000 - 2999 куб. метров в час","руб./куб. м в час",24.62]
[null,null,"3000 - 3999 куб. метров в час","руб./куб. м в час",20.11]
[null,null,"4000 - 4999 куб. метров в час","руб./куб. м в час",10.63]
[null,null,"5000 - 9999 куб. метров в час","руб./куб. м в час",5.31]
[null,null,"10000 - 19999 куб. метров в час","руб./куб. м в час",5.22]
[null,null,"20000 - 29999 куб. метров в час","руб./куб. м в час",3.47]
[7,"C7","Стандартизированная тарифная ставка на покрытие расходов ГРО, связанных со строительством (реконструкцией) станций катодной защиты (в ценах 2001 года)","руб./куб. м в час",466.49]
[8,"С8ik","Стандартизированная тарифная ставка на покрытие расходов ГРО, связанных с проверкой выполнения Заявителем технических условий и осуществлением фактического подключения  (технологического присоединения) объектов капитального строительства Заявителя к сети газораспределения посредством осуществления комплекса технических мероприятий, обеспечивающих физическое соединение (контакт) объектов исполнителя и стального газопровода ГРО i-го диапазона диаметров (полиэтиленового газопровода ГРО k-го диапазона диаметров), и проведением пуска газа"]
[null,null,null,null,0]
[null,null,"158 мм и менее Стальные газопроводы ","руб.",5762.71]
[null,null,"159 - 218 мм Стальные газопроводы ","руб.",12751.66]
[null,null,"219 - 272 мм Стальные газопроводы ","руб.",15408.51]
[null,null,"273 - 324 мм Стальные газопроводы ","руб.",17202.11]
[null,null,"109 мм и менее Полиэтиленовые газопроводы ","руб.",4813.9799999999996]
[null,null,"110 - 159 мм Полиэтиленовые газопроводы ","руб.",6052.6]
[null,null,"160 - 224 мм Полиэтиленовые газопроводы ","руб.",7876.12]
[null,null,"225-314 мм Полиэтиленовые газопроводы ","руб.",11286.96]

{"sheet":"Лист1","index":16,"n_rows":0,"n_cols":0,"rows_kept":0,"cut":false,"hidden":false,"merged":[]}